Cogmind - Beta 17.1 @@@ ROGUE MODE // 2026.09.11 @ 05:10:24 Player: 4R-ZE3 Result: Escaped! Performance ------------- Evolutions (9) 4500 Regions Visited (29) 5800 Robots Destroyed (549) 2745 Value Destroyed (29307) 29307 Prototype IDs (60) 1200 Alien Tech Used (7) 1400 Bonus (31542) 31542 TOTAL SCORE: 76494 Bonus ------- Triggered High Security 1500 High Alert Combat Kills 11758 Follower Combat Kills 3661 Met Imprinter 300 Destroyed Z-Imprinter 1000 Triggered Deep Caves Wall 500 Exposed GOLEM Chamber 500 Met Warlord at Base 500 MAIN.C Attacked Warlord 500 Warlord Defense Kills 2256 Built Enhanced Grunts 300 Met R17 at Cetus 500 Met R17 at Research 2000 Met Warlord at Research 2000 Invited to Help at Command 2000 Scanned by Researcher 500 Win 3000 Friendly Fire -1233 Cogmind --------- Core Integrity 1214/1600 Matter 43/300 Energy 94/746 System Corruption 15% Temperature Cool (4) Movement Treading (82) Location To Epsilon Eridani Parts ------- > --- POWER (3) -------- Multi-Quantum Reactor > --- PROPULSION (7) --- Treaded Centrium Exoskeleton > --- UTILITY (12) ----- Armored Scrap Engine Advanced Heat Sink Advanced Heat Sink Advanced Cooling System Advanced Coolant Injector Huge Storage Unit Experimental Optical Array Advanced Targeting Computer Experimental Core Analyzer Improved Armor Integrity Analyzer Advanced Force Field > --- WEAPON (4) ------- Hvy. Kinetic Hardcell Construct/C > --- INVENTORY (25) --- Cryofiber Web Advanced Heat Sink Advanced Cooling System Advanced Cooling System Long-range Sensor Array Long-range Sensor Array Advanced Signal Interpreter Experimental Core Analyzer Matter Filter Advanced EM Shield Advanced Hardlight Generator Advanced Dynamic Insulation System Transdimensional Reconstructor Core Reset Matrix Subatomic Replicator Peak State ------------ > --- POWER ------------ Multi-Quantum Reactor > --- PROPULSION ------- Treaded Centrium Exoskeleton > --- UTILITY ---------- Armored Scrap Engine Advanced Heat Sink Advanced Heat Sink Huge Storage Unit Experimental Optical Array Long-range Sensor Array Experimental Signal Interpreter Advanced Targeting Computer Experimental Core Analyzer Advanced Phase Shifter Advanced EM Shield > --- WEAPON ----------- Hvy. Kinetic Hardcell Construct/C > --- INVENTORY -------- Cryofiber Web Cryofiber Web Advanced Heat Sink Advanced Cooling System Advanced Cooling System Advanced Cooling System Advanced Coolant Injector Long-range Sensor Array Advanced Signal Interpreter Experimental Core Analyzer Improved Armor Integrity Analyzer Matter Filter Advanced Hardlight Generator Advanced Force Field Advanced Force Field Long-range Tractor Beam Transdimensional Reconstructor Core Reset Matrix Subatomic Replicator Matter Neutralizer Linear Accelerator Linear Accelerator Enhanced Hardcell Cannon Enhanced Hardcell Cannon Enhanced Hardcell Cannon [Rating: 202] Favorites ----------- Power Constructs Engine Deuterium Engine Power Core Meta Core Reactor Constructs Propulsion Constructs Treads Constructs Leg Zionite Composite Leg I Wheel Compact Wheel Hover Unit Zionite Glidesys II Flight Unit Flight Unit Utility Huge Storage Unit Device Armored Scrap Engine Storage Huge Storage Unit Processor Advanced Signal Interpreter Protection Hardened Heavy Armor Plating Artifact Phase Redirector Weapon Constructs Energy Gun Subdweller Laser Energy Cannon Subdweller Beam Cannon Ballistic Gun Flak Gun Ballistic Cannon Constructs Launcher Long-range Missile Launcher Impact Weapon Heavy Flail Piercing Weapon Vortex Lance Build | -11 -10 -10 -8 -8 -8 -6 -6 -6 -6 -6 -6 -6 -5 -5 -5 -5 -5 -4 -4 -4 -4 -4 -4 -3 -3 -2 -2 -2 -1 ------- Run | Yrd Mat Sub Mat Sto Rec Fac Was Fac Low Low Zio Dee Pro Fac Upp Upp War Pro Fac Was Fac Ext Cet Res Tes Res Qua Sec Acc Slots Evolved 18 | . . . 4 . . 4 . . . . . . . 2 . . . . 2 . . . . 2 . 2 . . 2 Power 2 | . . . . . . 1 . . . . . . . . . . . . . . . . . . . . . . 1 Propulsion 5 | . . . 2 . . 1 . . . . . . . . . . . . . . . . . 1 . 1 . . . Utility 9 | . . . 2 . . 1 . . . . . . . 2 . . . . 1 . . . . 1 . 1 . . 1 Weapon 2 | . . . . . . 1 . . . . . . . . . . . . 1 . . . . . . . . . . Parts Attached 187 | 6 4 17 17 23 8 5 . 2 3 1 4 9 1 9 2 . 9 . 2 3 3 8 2 16 5 6 5 8 9 Power 8 | 1 1 2 2 . 1 1 . . . . . . . . . . . . . . . . . . . . . . . Engine 6 | 1 1 2 1 . 1 . . . . . . . . . . . . . . . . . . . . . . . . Core 2 | . . . 1 . . 1 . . . . . . . . . . . . . . . . . . . . . . . Reactor . | . . . . . . . . . . . . . . . . . . . . . . . . . . . . . . Propulsion 26 | 2 . 4 7 8 2 . . . . . . 3 . . . . . . . . . . . . . . . . . Treads 11 | 2 . . 1 8 . . . . . . . . . . . . . . . . . . . . . . . . . Leg 1 | . . . . . . . . . . . . 1 . . . . . . . . . . . . . . . . . Wheel 10 | . . 4 4 . 2 . . . . . . . . . . . . . . . . . . . . . . . . Hover 2 | . . . . . . . . . . . . 2 . . . . . . . . . . . . . . . . . Flight 2 | . . . 2 . . . . . . . . . . . . . . . . . . . . . . . . . . Utility 120 | 1 2 4 3 5 1 4 . 2 3 1 4 5 1 9 2 . 7 . 2 3 3 8 2 16 5 6 5 7 9 Device 75 | . 1 2 . 2 1 1 . 1 2 1 . 1 1 6 1 . 4 . 1 3 2 8 2 10 4 3 4 7 7 Storage 6 | 1 1 . . 1 . 1 . . . . . 1 . . . . . . . . . . . 1 . . . . . Processor 27 | . . . . . . 2 . 1 1 . 4 . . 3 1 . 3 . 1 . 1 . . 4 1 3 . . 2 Hackware . | . . . . . . . . . . . . . . . . . . . . . . . . . . . . . . Protection 11 | . . 2 3 2 . . . . . . . 3 . . . . . . . . . . . 1 . . . . . Artifact 1 | . . . . . . . . . . . . . . . . . . . . . . . . . . . 1 . . Weapon 33 | 2 1 7 5 10 4 . . . . . . 1 . . . . 2 . . . . . . . . . . 1 . Energy Gun 7 | . . 3 1 1 1 . . . . . . . . . . . 1 . . . . . . . . . . . . Energy Cannon 7 | . . 2 . 3 1 . . . . . . . . . . . . . . . . . . . . . . 1 . Ballistic Gun 11 | 2 1 2 2 4 . . . . . . . . . . . . . . . . . . . . . . . . . Ballistic Cannon 3 | . . . 2 1 . . . . . . . . . . . . . . . . . . . . . . . . . Launcher 3 | . . . . 1 1 . . . . . . 1 . . . . . . . . . . . . . . . . . Special Weapon . | . . . . . . . . . . . . . . . . . . . . . . . . . . . . . . Impact Weapon 1 | . . . . . 1 . . . . . . . . . . . . . . . . . . . . . . . . Slashing Weapon . | . . . . . . . . . . . . . . . . . . . . . . . . . . . . . . Piercing Weapon 1 | . . . . . . . . . . . . . . . . . 1 . . . . . . . . . . . . Special Melee Weapon . | . . . . . . . . . . . . . . . . . . . . . . . . . . . . . . Unidentified Prototypes 38 | . . . . 4 1 . . . . 1 3 8 . 1 . . 4 . . . . . . 7 2 . 2 3 2 Corrupted Parts 2 | . . . . . . . . . . . . . . . . . . . . . . . 2 . . . . . . System Corruption 12 | . . . . . . . . . . . . . . . . . . . . . . . 12 . . . . . . Parts Lost 56 | . 1 7 9 2 1 . . . . . . . 3 1 2 . 3 . . . . 3 . 7 . 3 3 4 7 Power 5 | . 1 1 2 . 1 . . . . . . . . . . . . . . . . . . . . . . . . Propulsion 8 | . . 4 3 1 . . . . . . . . . . . . . . . . . . . . . . . . . Utility 34 | . . 1 . 1 . . . . . . . . 2 1 2 . 3 . . . . 3 . 6 . 3 3 3 6 Weapon 9 | . . 1 4 . . . . . . . . . 1 . . . . . . . . . . 1 . . . 1 1 Highest Loss Streak 8 | . 1 3 8 1 1 . . . . . . . 2 1 2 . 1 . . . . 1 . 4 . 2 1 3 5 To Critical Strikes 1 | . . . . . . . . . . . . . . . . . . . . . . . . 1 . . . . . Average Backups 19 | 2 7 11 10 24 17 16 20 21 23 23 24 24 17 18 21 20 24 25 23 16 16 21 21 21 17 20 23 22 21 Power . | . . . . 2 1 1 1 1 1 1 1 . . . . . . . . . . 1 1 . . 1 1 . . Propulsion 1 | . 2 1 . 3 6 6 3 . . . . 1 . . . . . 2 . . 1 1 1 2 3 1 . . . Utility 12 | . 1 1 3 5 5 4 9 12 15 15 15 14 12 14 16 15 19 19 18 14 14 18 17 18 14 17 16 15 15 Weapon 4 | . 3 6 4 13 2 3 6 7 7 7 7 7 4 3 4 3 3 3 3 1 . . 2 . . . 2 1 2 Tool/Special . | . . . . . . . . . . . . . . . . . . . . . . . . . . . . . . Unused Backups 164 | . . 14 . 7 24 . 6 4 1 . 2 8 5 11 2 1 7 . 5 7 4 5 . 9 2 10 9 4 17 Power 7 | . . 2 . . 1 . . . . . . 1 . . . . . . . . . . . 1 . . 1 1 . Propulsion 37 | . . 2 . 4 12 . 6 1 . . . . 1 . . . 2 . 1 . 1 . . 1 . 5 1 . . Utility 37 | . . . . . 4 . . 3 . . 2 4 . 1 . . 1 . 1 5 1 . . 3 2 3 2 . 5 Weapon 79 | . . 10 . 3 7 . . . 1 . . 3 4 10 2 1 4 . 3 1 2 5 . 4 . 2 5 3 9 Tool/Special 4 | . . . . . . . . . . . . . . . . . . . . 1 . . . . . . . . 3 Average Slot Usage (%) 59 | . 98 93 72 90 70 42 45 45 45 45 46 47 50 57 57 55 54 55 55 55 55 54 55 53 52 53 53 53 52 Engine 3 | . 13 13 1 . 8 4 . . . . . 1 3 4 . . . . . . . . . . . . . . . Core 1 | . . . 3 9 . 1 4 4 4 4 4 4 4 1 . . 2 . . . . . . . . . . . . Reactor 2 | . . . . . . . 3 4 4 4 4 2 . . 5 5 2 5 5 5 5 5 5 4 4 4 4 4 3 Treads 5 | . 28 10 2 33 12 2 2 4 4 4 4 2 1 . . . . . . 4 2 2 5 2 2 1 . . . Leg 1 | . . . . . . . . . . . . . . 3 5 3 1 . . . . 2 . 1 . 2 4 2 2 Wheel 2 | . . 16 13 2 6 . . . . . . . . . . . . . . . . . . . . . . . . Device 15 | . 13 9 5 8 17 11 13 13 9 10 12 12 13 18 15 16 14 15 15 15 13 20 25 22 27 27 24 24 23 Storage 5 | . 14 9 9 9 9 4 4 4 4 4 4 4 4 4 5 5 5 5 5 5 5 5 5 4 4 4 4 4 3 Processor 9 | . . . . . . 8 9 9 12 13 12 13 13 13 16 16 17 16 20 20 21 14 10 12 3 8 12 12 14 Protection 1 | . . 4 14 9 . . . . . . . . . . . . . . . . . . . . 2 . . . . Energy Gun 1 | . . 13 6 1 2 . . . . . . . . 1 . 1 . . . . . . . . . . . . . Energy Cannon 2 | . . 5 . . 4 2 4 4 . . 1 1 2 1 4 . 2 4 5 . 2 1 3 1 . 1 1 2 . Ballistic Gun 2 | . 28 9 . 14 3 . . . . . . . . . . . . . . . . . . . . . . . . Ballistic Cannon 1 | . . . 7 1 1 2 . . 3 3 2 2 1 . . 3 2 . . 4 2 3 1 2 4 2 2 1 2 Peak Build Rating 202 | 6 7 19 26 46 56 101 120 123 123 128 130 142 142 156 105 101 136 144 148 141 153 153 157 176 168 185 201 193 202 Average Rating 106 | 4 6 13 17 38 47 83 113 118 119 125 123 133 135 124 101 93 109 141 138 136 144 145 147 163 156 168 189 183 194 On Entrance 110 | . 6 7 16 26 46 53 101 119 118 123 128 128 142 133 105 96 92 132 143 135 138 152 141 153 155 157 185 184 187 Avg Prop Armor Cover (%) 6 | . . 6 5 7 7 . . . . . . 2 . . . . . . . . . . . . . . . . . Naked Turns . | . . . . . . . . . . . . . . . . . . . . . . . . . . . . . . Heaviest Build 182 | 13 90 98 102 119 118 111 122 122 122 122 122 133 133 128 111 130 132 136 135 136 148 152 151 182 168 173 176 172 173 Greatest Support 319 | 40 40 40 46 80 80 104 181 160 141 141 105 131 131 129 129 129 160 159 159 159 159 159 159 319 175 267 288 234 234 Greatest Overweight (x) 9 | . 2 9 5 4 9 1 1 . . 1 1 1 1 1 . 1 1 . . . . . . 1 1 1 . . . Average Overweight (x) . | . . 2 2 1 2 . . . . . 1 . . . . . . . . . . . . . . . . . . Largest Inventory Capacity 25 | 8 25 25 25 25 25 25 25 25 25 25 25 25 25 25 25 25 25 25 25 25 25 25 25 25 25 25 25 25 25 Average Capacity 24 | 7 16 18 25 25 25 25 25 25 25 25 25 25 25 25 25 25 25 25 25 25 25 25 25 25 25 25 25 25 25 Most Carried 25 | 4 9 22 22 25 25 20 25 25 24 24 25 25 23 25 23 23 25 25 25 22 21 25 24 25 23 25 25 25 25 Average Carried 20 | 2 7 11 10 24 17 16 23 22 23 23 24 24 17 18 21 20 24 24 23 17 18 22 22 23 20 21 23 22 21 Final Capacity 25 | 8 25 25 25 25 25 25 25 25 25 25 25 25 25 25 25 25 25 25 25 25 25 25 25 25 25 25 25 25 25 Final Carried 25 | 4 9 10 22 25 17 20 25 23 24 23 24 23 16 23 19 23 25 25 22 20 20 24 23 21 21 22 24 21 15 Scrap Engine Consumption 572 | . . . . . 58 22 18 2 7 5 6 13 27 60 6 11 55 8 15 10 11 39 25 39 22 33 25 23 32 Constructs Created 7 | . . . . . 3 . . . . . . . . 1 . . 1 . . . . . . . 1 1 . . . Constructs Modified 247 | . . . . . 17 10 9 1 3 2 2 7 10 29 3 6 20 7 7 4 5 18 5 21 11 15 7 12 16 Class Distribution -------------------- 64% | Construct 13% | Mutant 10% | Scavenger-Construct 4% | Commander-Construct 4% | Scavenger-Mutant Dominant Class ---------------- Mutant | -10/Materials Mutant | -10/Subcaves Scavenger-Mutant | -8/Materials Scavenger-Mutant | -8/Storage Construct | -8/Recycling Construct | -6/Factory Construct | -6/Waste Construct | -6/Factory Construct | -6/Lower Caves Construct | -6/Lower Caves Construct | -6/Zion Construct | -6/Deep Caves Construct | -5/Proximity Caves Construct | -5/Factory Construct | -5/Upper Caves Construct | -5/Upper Caves Construct | -5/Warlord Construct | -4/Proximity Caves Construct | -4/Factory Construct | -4/Waste Construct | -4/Factory Commander-Construct | -4/Extension Commander-Construct | -4/Cetus Scavenger-Construct | -3/Research Scavenger-Construct | -3/Testing Construct | -2/Research Scavenger-Construct | -2/Quarantine Construct | -2/Section 7 Scavenger-Construct | -1/Access Resources | -11 -10 -10 -8 -8 -8 -6 -6 -6 -6 -6 -6 -6 -5 -5 -5 -5 -5 -4 -4 -4 -4 -4 -4 -3 -3 -2 -2 -2 -1 ----------- Run | Yrd Mat Sub Mat Sto Rec Fac Was Fac Low Low Zio Dee Pro Fac Upp Upp War Pro Fac Was Fac Ext Cet Res Tes Res Qua Sec Acc Matter Collected 11250 | 185 466 201 366 940 414 337 387 134 164 69 78 266 151 766 108 79 105 20 80 115 185 1142 125 537 299 159 338 1286 1748 Remotely 1051 | . . . . . . . . . . . . . . . . . . . . . . . . . . . . 390 661 Salvage Created 35037 | . 610 642 424 1376 1609 851 1268 300 127 44 . 919 1250 2027 336 405 924 551 161 1491 245 1868 273 4673 1795 1300 3291 2233 4044 Parts 1481 | . 36 58 20 78 86 31 16 16 8 2 . 34 45 87 6 34 40 17 5 31 15 80 19 169 83 40 104 92 229 Haulers Intercepted 14 | . 2 . . 6 . 1 . . . . . . . . . . . . . . . . . 4 . 1 . . . Recyclers Shooed 8 | . 1 . 1 1 3 1 . . . . . . . . . . . . . . . . . . . . . 1 . Parts Field Recycled . | . . . . . . . . . . . . . . . . . . . . . . . . . . . . . . Retrieved Matter . | . . . . . . . . . . . . . . . . . . . . . . . . . . . . . . Parts Self-Destructed 103 | . . 25 . . . . . . 21 . 3 . 25 . 3 23 . 3 . . . . . . . . . . . Prevented 17 | . . . . . . . . . . . . . . . . 3 . 14 . . . . . . . . . . . Parts Restored . | . . . . . . . . . . . . . . . . . . . . . . . . . . . . . . Kills | -11 -10 -10 -8 -8 -8 -6 -6 -6 -6 -6 -6 -6 -5 -5 -5 -5 -5 -4 -4 -4 -4 -4 -4 -3 -3 -2 -2 -2 -1 ------- Run | Yrd Mat Sub Mat Sto Rec Fac Was Fac Low Low Zio Dee Pro Fac Upp Upp War Pro Fac Was Fac Ext Cet Res Tes Res Qua Sec Acc Combat Hostiles Destroyed 467 | . 15 17 10 29 5 11 4 4 3 . . 28 19 34 7 11 18 7 2 5 3 18 4 51 22 16 42 32 50 Melee 4 | . . . . . . . . . . . . . . 2 . . . . . . . . . . . . 1 . 1 Guns 84 | . 15 13 2 28 5 . . . . . . . . 13 3 5 . . . . . . . . . . . . . Cannons 335 | . . 3 8 1 . 10 2 4 3 . . 15 17 15 4 6 18 5 2 5 3 18 4 46 22 16 32 27 49 AOE 18 | . . . . . . . . . . . . 13 2 . . . . . . . . . . . . . . 3 . Classes Destroyed 33 | . 5 1 3 . . 2 1 . 1 1 . 3 3 1 . . 5 1 . . . . . 1 2 1 1 . 1 Worker 9 | . . . 1 . . 2 . . . . . . . . . . . . . . . . . . 2 . . 2 2 Builder 22 | . . . 1 . 11 2 . . . . . . . . . . . . . . . 1 . . 2 . 2 . 3 Hauler 14 | . 2 . . 6 . 1 . . . . . . . . . . . . . . . . . 4 . 1 . . . Recycler 24 | . 1 . 2 2 14 . . . . . . . . 1 . . . . . . . 2 . . 1 1 . . . Carrier 1 | . . . . . . . . . . . . . . . . . . . . . . . . . . . 1 . . Minesweeper 1 | . . . . . . . . . . . . . . . . . . 1 . . . . . . . . . . . Mechanic 3 | . . . . . . . . . . . . . . . . . . . . . . . . . . 1 . 1 1 Operator 8 | . 1 . . . . . . . . . . . . . . . . . . . 1 . . 1 . . 3 1 1 Drone 2 | . . . . . . . . . . . . . 2 . . . . . . . . . . . . . . . . Watcher 14 | . . . . . . . . . . . . . . 2 . . . . . . . 1 . 1 2 1 1 3 3 Swarmer 63 | . 7 4 4 7 . . . . 1 . . . 1 10 3 9 1 . . . . . . 4 . 1 . 9 2 Cutter 3 | . . . . . . . . . . . . . . . . . . . . . . . . . . . . . 3 Saboteur 7 | . . . . . . . . . . . . . . . . . 1 . . . . . . 1 1 . 1 . 3 Grunt 148 | . 8 . 3 10 . 4 . 2 1 . . . 8 7 4 . 7 2 . . . 13 . 23 12 6 15 8 15 Brawler 20 | . . . . . . . . . . . . . 2 . . . 1 . . . . . . 8 . . 4 . 5 Duelist 13 | . . . . . . . . . 1 . . . 1 . . . 1 . . . . . . 2 3 1 1 3 . Protector 9 | . . . . . . . . . . . . . . . . . 3 . . . . . . 3 1 . . . 2 Sentry 57 | . . . 3 12 2 3 . 2 . . . . 3 5 . . . . 2 . 1 2 . 8 . 1 5 6 2 Specialist 10 | . . . . . . . . . . . . . . . . . . . . . . . . . 3 . 5 . 2 Hunter 28 | . . . . . . 3 . . . . . . 3 . . 2 . 2 . . . 1 . 1 . 3 4 4 5 Programmer 32 | . . . . . . 1 . . . . . . . 12 . . 1 2 . . 2 . . . . . 7 . 7 Q-Series 7 | . . . . . . . . . . . . . . . . . . . . . . . . . 2 . . 2 3 Behemoth 4 | . . . . . . . . . . . . . 1 . . . . 1 . . . 1 . . . . . . 1 Compactor 9 | . . . . . . . 4 . . . . . . . . . . . . 5 . . . . . . . . . Cetus Guard 4 | . . . . . . . . . . . . . . . . . . . . . . . 4 . . . . . . Investigator 2 | . . . . . . . . . . . . . . . . . . . . . . . . 2 . . . . . Striker 4 | . . . . . . . . . . . . . . . . . 1 . . . . . . 1 . 2 . . . Executioner 4 | . . . . . . . . . . . . . . . . . 2 . . . . . . . . 2 . . . Subdweller 16 | . . 13 . . 3 . . . . . . . . . . . . . . . . . . . . . . . . Z-Light 6 | . . . . . . . . . . . . 6 . . . . . . . . . . . . . . . . . Samaritan 1 | . . . . . . . . . . 1 . . . . . . . . . . . . . . . . . . . Tinkerer 1 | . . . . . . . . . . . . . . . . . 1 . . . . . . . . . . . . Assembled 20 | . . . . . . . . . . . . 20 . . . . . . . . . . . . . . . . . Golem 1 | . . . . . . . . . . . . 1 . . . . . . . . . . . . . . . . . Wasp 1 | . . . . . . . . 1 . . . . . . . . . . . . . . . . . . . . . Thug 1 | . . . . . . . . . . . . . . . . . . . . . . 1 . . . . . . . Guerrilla 1 | . . . . . . . . . . . . . . . . . . . . . . 1 . . . . . . . Best Kill Streak 23 | . 3 4 4 7 4 6 2 3 2 . . 11 3 4 4 5 4 4 1 2 1 3 2 23 13 6 22 7 16 Combat Bots Only 21 | . 3 4 4 5 2 4 2 3 2 . . 11 3 4 4 5 4 3 1 2 1 2 2 21 10 6 20 6 14 Max Kills in Single Turn 4 | . 2 1 1 2 1 3 1 1 1 1 . 4 2 1 1 1 1 1 1 1 1 1 1 3 1 1 1 2 1 Gunslinging 1 | . 1 . . . . . . . . . . . . . . . . . . . . . . . . . . . . Exploded 4 | . . . . . . . . . . . . 4 2 . . . . . . . . . . . . . . 2 . Melee 1 | . . . . . . . . . . . . . . 1 . . . . . . . . . . . . 1 . 1 Uniques/NPCs Destroyed 1 | . . . . . . . . . . . . 1 . . . . . . . . . . . . . . . . . Z-Imprinter (-6/Deep Caves) Combat | -11 -10 -10 -8 -8 -8 -6 -6 -6 -6 -6 -6 -6 -5 -5 -5 -5 -5 -4 -4 -4 -4 -4 -4 -3 -3 -2 -2 -2 -1 -------- Run | Yrd Mat Sub Mat Sto Rec Fac Was Fac Low Low Zio Dee Pro Fac Upp Upp War Pro Fac Was Fac Ext Cet Res Tes Res Qua Sec Acc Hostile Shots Fired 2747 | . 60 73 109 101 15 115 . 15 13 . . 97 113 216 67 87 140 46 4 1 6 113 3 210 155 79 249 238 422 Missed 926 | . 10 22 30 33 3 39 . 4 3 . . 21 29 64 18 27 55 30 2 . 4 29 1 66 55 25 134 90 132 Hits 1821 | . 50 51 79 68 12 76 . 11 10 . . 76 84 152 49 60 85 16 2 1 2 84 2 144 100 54 115 148 290 Melee 35 | . . . . . . . . . 1 . . 5 . . . . 1 . . 1 . . . 12 3 3 2 1 6 Projectile 1786 | . 50 51 79 68 12 76 . 11 9 . . 71 84 152 49 60 84 16 2 . 2 84 2 132 97 51 113 147 284 AOE 17 | . . . . . . . . . . . . . . . . . 5 . . . . . . 1 . 2 . 6 3 Critical Strikes 75 | . . . 6 4 . . . . 1 . . . 2 11 . . 1 2 . . . 5 . 7 4 3 1 7 21 Part Disruptions 1 | . . . . . . . . . . . . . . . . . . . . . . . . . . . . . 1 Damage Taken 31831 | . 503 932 1163 977 245 1050 . 81 177 18 . 2163 1570 2991 791 730 2010 346 49 41 124 2116 93 2464 1041 1126 1407 3073 4550 Core 3476 | . 75 154 332 53 . 148 . 6 . . . 268 78 346 76 101 309 104 24 . . 594 . 119 30 39 81 264 275 Absorbed by Shields 6098 | . . . . . . . . . . . . . . . . . 244 . . . . 134 12 1019 560 344 456 1031 2298 Ignored by Resistances 1766 | . . . . . . . . . . . . . . . 65 240 . . . . . . . . 446 15 398 76 526 Regen/Repaired (Parts) 19493 | . . . . . 36 682 72 24 213 104 . 97 2199 2007 436 582 1265 275 165 39 63 3049 70 1493 482 1537 672 2240 1691 Core Remaining (%) 49 | 100 . 8 . . 30 . . . . . . . 41 . . . . 6 . . . . 46 . 88 . . 50 75 Volleys Fired 1819 | . 61 71 35 74 132 38 26 9 7 3 2 47 47 182 44 43 79 47 18 63 12 73 8 149 70 59 142 116 162 Largest 2 | . 2 2 2 2 2 1 1 1 1 1 1 1 1 1 1 1 1 1 1 1 1 1 1 1 1 1 1 1 1 Hottest 611 | . 40 160 120 102 120 180 180 180 180 180 180 255 340 504 29 27 157 71 156 156 541 611 611 611 108 98 226 240 348 Shots Fired 2012 | . 122 108 59 143 155 38 26 9 7 3 2 47 47 180 42 43 79 47 18 59 10 67 7 149 69 59 141 115 161 Gun 564 | . 122 85 30 128 79 . . . . . . . . 100 10 10 . . . . . . . . . . . . . Cannon 1441 | . . 23 29 15 75 38 26 9 7 3 2 43 45 80 32 33 79 47 18 59 10 67 7 149 69 59 141 115 161 Launcher 7 | . . . . . 1 . . . . . . 4 2 . . . . . . . . . . . . . . . . Special . | . . . . . . . . . . . . . . . . . . . . . . . . . . . . . . Kinetic 1137 | . 122 16 41 125 28 2 . . 5 . 2 9 9 68 . 33 51 . . 59 4 42 7 121 69 35 61 108 120 Thermal 594 | . . 92 18 18 105 36 26 9 2 3 . . 33 97 32 . 1 3 10 . 6 25 . 6 . 24 . 7 41 Explosive 7 | . . . . . 1 . . . . . . 4 2 . . . . . . . . . . . . . . . . Electromagnetic 210 | . . . . . 21 . . . . . . . . 15 10 10 . 44 8 . . . . 22 . . 80 . . Entropic 27 | . . . . . . . . . . . . . . . . . 27 . . . . . . . . . . . . Phasic 37 | . . . . . . . . . . . . 34 3 . . . . . . . . . . . . . . . . Robot Hit Streak 27 | . 11 15 6 14 18 10 19 3 8 1 . 4 6 27 13 12 8 9 6 11 6 9 9 20 11 6 8 7 18 Robot Miss Streak 7 | . 2 2 5 6 4 3 6 5 3 1 . 7 5 3 2 3 3 1 1 3 2 3 1 4 2 4 5 6 4 Penetration Max 2 | . . . . . . . . . . . . . 1 . . . 1 . . 1 . 1 . 2 . . 1 1 . Secondary Targets 7 | . 1 4 1 1 . . . . . . . . . . . . . . . . . . . . . . . . . Max Gunslinging Chain 1 | . 1 1 1 1 . . . . . . . . . . . . . . . . . . . . . . . . . Shots Hit Robots 1324 | . 87 54 40 119 98 34 25 8 7 1 . 25 25 112 25 36 55 24 8 45 7 43 5 104 50 35 75 62 115 Core Hits 784 | . 33 24 29 140 52 27 12 10 6 . . 37 16 42 13 30 24 7 2 10 4 22 4 54 22 19 43 41 61 Critical Kills 19 | . . 1 . . . . . . . . . . . . . . 2 . . . . . . 9 3 3 . 1 . Critical Parts Destroyed 26 | . . . 1 . . . . . . . . . . 1 . . . . . . . . . 10 10 3 1 . . Critical Strikes 56 | . . 1 1 . . . . . . . . . . 1 . . 2 . . . . . . 22 14 7 1 1 6 Meltdown 1 | . . 1 . . . . . . . . . . . . . . . . . . . . . . . . . . . Destroy 48 | . . . 1 . . . . . . . . . . . . . 2 . . . . . . 22 14 7 1 1 . Blast 6 | . . . . . . . . . . . . . . . . . . . . . . . . . . . . . 6 Smash 1 | . . . . . . . . . . . . . . 1 . . . . . . . . . . . . . . . Melee Attacks 53 | . . . . . 44 . . . . . . . . 9 . . . . . . . . . . . . . . . Impact 53 | . . . . . 44 . . . . . . . . 9 . . . . . . . . . . . . . . . Slashing . | . . . . . . . . . . . . . . . . . . . . . . . . . . . . . . Piercing . | . . . . . . . . . . . . . . . . . . . . . . . . . . . . . . Sneak Attacks 1 | . . . . . 1 . . . . . . . . . . . . . . . . . . . . . . . . Combat Hostiles . | . . . . . . . . . . . . . . . . . . . . . . . . . . . . . . Follow-up Attacks . | . . . . . . . . . . . . . . . . . . . . . . . . . . . . . . Damage Inflicted 103938 | . 1139 1108 959 2213 2159 2302 2335 532 467 110 . 4201 4641 6670 806 554 4631 1250 280 3436 716 4433 843 16050 6007 4749 8701 8327 14319 Guns 7817 | . 1139 891 427 2090 999 . . . . . . . . 1919 189 163 . . . . . . . . . . . . . Cannons 93677 | . . 217 532 123 1086 2302 2335 532 467 110 . 3037 4401 4534 617 391 4631 1250 280 3436 716 4433 843 16050 6007 4749 8642 7707 14249 Explosions 2077 | . . . . . . . . . . . . 1164 240 . . . . . . . . . . . . . 59 544 70 Melee 291 | . . . . . 74 . . . . . . . . 217 . . . . . . . . . . . . . . . Ramming 76 | . . . . . . . . . . . . . . . . . . . . . . . . . . . . 76 . Kinetic 65124 | . 1139 167 713 1968 493 . . . 294 . . 626 1454 3601 . 391 2318 . . 3436 182 2609 843 13896 6007 2960 4903 7519 9605 Thermal 24590 | . . 941 246 245 1389 2302 2335 532 173 110 . . 2805 2727 617 . . . 142 . 534 1824 . 635 . 1789 . 530 4714 Explosive 1665 | . . . . . . . . . . . . 1164 240 . . . . . . . . . . . . . 59 202 . Electromagnetic 7326 | . . . . . 203 . . . . . . . . 125 189 163 . 1250 138 . . . . 1519 . . 3739 . . Impact 291 | . . . . . 74 . . . . . . . . 217 . . . . . . . . . . . . . . . Slashing . | . . . . . . . . . . . . . . . . . . . . . . . . . . . . . . Piercing . | . . . . . . . . . . . . . . . . . . . . . . . . . . . . . . Entropic 2313 | . . . . . . . . . . . . . . . . . 2313 . . . . . . . . . . . . Phasic 2553 | . . . . . . . . . . . . 2411 142 . . . . . . . . . . . . . . . . Highest Corruption 38 | . . . . . . . . . . . . . . 10 10 10 10 . . 31 31 26 38 11 11 . 6 6 15 Average Corruption 11 | . . . . . . . . . . . . . . 5 10 10 10 . . 16 27 26 26 6 11 . 3 2 2 Corruption Purged 11 | . . . . . . . . . . . . . . . . . . . . . 5 . . . . . . 6 . Corruption Blocked . | . . . . . . . . . . . . . . . . . . . . . . . . . . . . . . Effects 377 | . . . . . . . . . . . . . . 68 42 23 2 . . 25 26 108 18 3 27 . 14 9 12 Message Errors 78 | . . . . . . . . . . . . . . 19 7 8 . . . 5 4 20 2 1 4 . 2 4 2 Matter Fused 85 | . . . . . . . . . . . . . . 19 10 4 . . . 5 5 21 2 . 9 . 6 2 2 Heat Flow Errors 42 | . . . . . . . . . . . . . . 7 5 7 . . . 1 4 11 2 . 2 . 1 1 1 Energy Discharges 50 | . . . . . . . . . . . . . . 10 4 1 . . . 4 3 20 . 2 3 . 1 1 1 Parts Rejected 9 | . . . . . . . . . . . . . . 2 2 . . . . 1 . 3 1 . . . . . . Parts Fused 2 | . . . . . . . . . . . . . . . 1 . . . . . . 1 . . . . . . . Data Loss (minor) 42 | . . . . . . . . . . . . . . 6 6 2 . . . 2 5 11 3 . 4 . 1 . 2 Data Loss (major) 21 | . . . . . . . . . . . . . . 3 1 1 1 . . 3 . 5 1 . 2 . 1 . 3 Alerts 9 | . . . . . . . . . . . . . . . 3 . 1 . . . 1 1 1 . 1 . 1 . . Misdirections 18 | . . . . . . . . . . . . . . . 1 . . . . . 2 9 5 . 1 . . . . Weapon Failures 21 | . . . . . . . . . . . . . . 2 2 . . . . 4 2 6 1 . 1 . 1 1 1 Overload Shots . | . . . . . . . . . . . . . . . . . . . . . . . . . . . . . . Overflow Damage 9493 | . . . 6 . 109 41 . 29 12 108 . 406 837 1237 10 6 345 69 . 3 131 256 . 1197 967 479 680 943 1622 Projectiles 9198 | . . . 6 . 75 41 . 29 12 108 . 272 816 1163 10 6 345 69 . 3 131 256 . 1197 967 479 680 911 1622 Explosions 161 | . . . . . . . . . . . . 134 21 . . . . . . . . . . . . . . 6 . Melee 134 | . . . . . 34 . . . . . . . . 74 . . . . . . . . . . . . . 26 . Knockbacks 153 | . . . 7 . 2 . . . . . . . 1 7 . 4 8 . . . . 9 . 26 28 12 11 19 19 Impact 1 | . . . . . 1 . . . . . . . . . . . . . . . . . . . . . . . . Kinetic 139 | . . . 6 . 1 . . . . . . . 1 7 . 4 8 . . . . 8 . 26 23 12 10 18 15 Secondary 13 | . . . 1 . . . . . . . . . . . . . . . . . . 1 . . 5 . 1 1 4 Self-Inflicted Damage 133 | . . . . . 4 . . . . . . 7 . . . . . . . . 84 . . . . . . 38 . Shots 3 | . . . . . 1 . . . . . . 1 . . . . . . . . 1 . . . . . . . . Rammed 1 | . . . . . . . . . . . . . . . . . . . . . . . . . . . . 1 . Targets Rammed 1 | . . . . . . . . . . . . . . . . . . . . . . . . . . . . 1 . Kicked . | . . . . . . . . . . . . . . . . . . . . . . . . . . . . . . Crushed . | . . . . . . . . . . . . . . . . . . . . . . . . . . . . . . Highest Temperature 605 | . . 114 239 264 172 328 320 92 324 168 374 407 433 468 123 235 344 36 200 605 497 532 514 528 218 . 322 448 564 Average Temperature 130 | . . 25 103 99 23 131 128 32 153 89 144 123 143 126 45 80 88 19 62 105 177 239 245 193 137 . 68 159 108 Received Heat Transfer 6109 | . 198 138 531 432 45 213 . . 18 . . 383 638 405 249 . 171 . 9 . . 383 . 365 297 93 137 336 1068 Effects 97 | . . . . 2 . . . . . . . . 2 3 . . 1 . . . 2 70 3 12 . . . . 2 Shutdowns 24 | . . . . . . . . . . . . . . . . . . . . . 1 19 1 3 . . . . . Energy Bleed 9 | . . . . . . . . . . . . . . 1 . . 1 . . . 1 4 1 1 . . . . . Interference 34 | . . . . 2 . . . . . . . . 2 . . . . . . . . 26 . 4 . . . . . Matter Decay 10 | . . . . . . . . . . . . . . 1 . . . . . . . 6 . 1 . . . . 2 Short Circuit 3 | . . . . . . . . . . . . . . . . . . . . . . 2 1 . . . . . . Damage (minor) 7 | . . . . . . . . . . . . . . 1 . . . . . . . 6 . . . . . . . Damage (major) 7 | . . . . . . . . . . . . . . . . . . . . . . 4 . 3 . . . . . Damage (core) 3 | . . . . . . . . . . . . . . . . . . . . . . 3 . . . . . . . Siege Activations . | . . . . . . . . . . . . . . . . . . . . . . . . . . . . . . Martial Activations . | . . . . . . . . . . . . . . . . . . . . . . . . . . . . . . Shielding Activations . | . . . . . . . . . . . . . . . . . . . . . . . . . . . . . . Robots Disrupted . | . . . . . . . . . . . . . . . . . . . . . . . . . . . . . . Combat Hostiles . | . . . . . . . . . . . . . . . . . . . . . . . . . . . . . . Robots Corrupted 25 | . . . . . 1 . . . . . . . . 2 . . . 2 . . . . . 5 3 . 10 2 . Combat Hostiles 19 | . . . . . . . . . . . . . . 2 . . . 2 . . . . . 4 . . 9 2 . Parts Fried 68 | . . . . . 2 . . . . . . . . 1 . . 2 15 . . . . . 10 6 3 28 1 . Impact Corruptions 12 | . . . . . 2 . . . . . . . . 4 . . . . . . . . . . 4 . . 2 . Robots Melted 7 | . . 1 . . . 2 2 . . . . . . 2 . . . . . . . . . . . . . . . Combat Hostiles 6 | . . 1 . . . 1 2 . . . . . . 2 . . . . . . . . . . . . . . . Parts Melted 57 | . . 4 2 . 3 9 7 . . . . 2 . 17 1 . 3 . . . . . . . . 2 . . 7 Heat Transferred 17128 | . . 1171 397 481 2405 2929 3108 703 222 37 . . 805 2400 800 . . . . . . 746 . 148 . 526 . 200 50 Parts Sabotaged 2 | . . . . . . . . . . . . . . . . . . . . . . . . . . . 1 . 1 Parts Stolen . | . . . . . . . . . . . . . . . . . . . . . . . . . . . . . . Parts Stripped . | . . . . . . . . . . . . . . . . . . . . . . . . . . . . . . Power Chain Reactions 2 | . . . . . . . . . . . . . . . . . . . . . . . . . . . . 1 1 Alert | -11 -10 -10 -8 -8 -8 -6 -6 -6 -6 -6 -6 -6 -5 -5 -5 -5 -5 -4 -4 -4 -4 -4 -4 -3 -3 -2 -2 -2 -1 ------- Run | Yrd Mat Sub Mat Sto Rec Fac Was Fac Low Low Zio Dee Pro Fac Upp Upp War Pro Fac Was Fac Ext Cet Res Tes Res Qua Sec Acc Maximum Alert Level 5 | . . . . 2 . 1 . 4 . . . . . 3 . . . . . . . 3 2 5 5 4 4 5 5 Low Security (%) 51 | 100 100 . 100 29 100 6 100 4 . . . . . 43 . . . . 100 100 100 71 . . . . . . . Level 1 13 | . . . . 61 . 93 . 20 . . . . . 35 . . . . . . . 4 . 1 . . . . . Level 2 7 | . . . . 9 . . . 1 . . . . . 16 . . . . . . . 17 100 10 . . 50 . . Level 3 11 | . . . . . . . . 57 . . . . . 4 . . . . . . . 5 . 21 . 97 21 45 7 Level 4 11 | . . . . . . . . 15 . . . . . . . . . . . . . . . 36 62 2 28 49 69 Level 5 1 | . . . . . . . . . . . . . . . . . . . . . . . . 2 33 . . 5 . High Security 2 | . . . . . . . . . . . . . . . . . . . . . . . . 27 4 . . . 22 Max Security . | . . . . . . . . . . . . . . . . . . . . . . . . . . . . . . Peak Influence 2834 | . 166 . 96 421 125 342 73 1348 . . . . . 716 . . . . 32 8 122 828 669 2834 1856 1107 1496 1682 2208 Initial 1593 | . . . . 14 125 327 73 . . . . . . 250 . . . . 11 . . 51 457 383 1593 1100 622 773 1001 Average 452 | . 85 . 44 280 22 262 5 706 . . . . . 296 . . . . 3 . 61 181 584 1376 1602 1031 907 1148 1500 Influence Increases 19694 | . 457 110 319 909 440 640 8 1808 559 . . . 628 1292 150 270 420 175 97 36 289 1647 352 3361 613 531 1523 1365 1695 Destroy 0b10 Robot/C 9680 | . 300 80 200 580 40 220 . 500 240 . . . 400 680 140 220 300 140 40 . 60 780 160 1400 420 320 860 640 960 Destroy 0b10 Robot/NC 625 | . 20 . 20 40 150 25 . 15 . . . . 10 15 . 5 15 5 . . 5 30 10 75 40 20 30 35 60 Destroy Leader 1682 | . 64 . 50 182 . 72 . 90 40 . . . 40 154 10 30 . 30 20 . 30 56 . 242 54 54 112 156 196 Allied During Kill 2499 | . . . . . . . . 605 279 . . . 28 . . . . . . . . 549 170 868 . . . . . Successful Hack 221 | . 12 . 18 13 23 . . 31 . . . . . 37 . . . . 21 . . . . 17 5 14 14 . 16 Select Force Hacks 240 | . 60 . . . 180 . . . . . . . . . . . . . . . . . . . . . . . . Disable Machine 990 | . . . 15 30 30 15 . 405 . . . . . 45 . . . . . . 45 45 . 60 60 60 105 45 30 Anti-Garrison Action 750 | . . . . . . . . 150 . . . . . . . . . . . . . . . 300 . . 150 . 150 Destroy Structure 1387 | . 1 . 1 4 17 8 8 12 . . . . . 106 . . . . 16 36 74 82 12 294 34 48 192 279 163 Advance Influence 450 | . . . . . . 300 . . . . . . . 150 . . . . . . . . . . . . . . . Partial Spotted 45 | . . . . 15 . . . . . . . . . . . . . . . . . . . . . . . . 30 Lose Combat Pursuer 1125 | . . 30 15 45 . . . . . . . . 150 105 . 15 105 . . . 75 105 . 105 . 15 60 210 90 Influence Decreases 17552 | . 345 222 283 623 697 494 219 472 1118 662 115 . 468 737 763 323 315 310 116 36 183 935 531 1166 1591 1336 1255 1070 1167 Entered New Map 6246 | . . 55 . 22 197 38 138 . 495 148 115 . . 60 265 21 49 154 8 . . 55 361 256 1241 812 485 602 669 Time Decay 9643 | . 335 147 208 581 490 356 81 392 583 514 . . 448 667 478 302 236 156 108 34 183 604 130 470 350 494 440 428 428 Search Patrol Dispatched 100 | . . . . . . 100 . . . . . . . . . . . . . . . . . . . . . . . Lost Part 485 | . 10 20 75 20 10 . . . . . . . 20 10 20 . 30 . . . . 30 . 70 . 30 30 40 70 Lost Ally 628 | . . . . . . . . 80 40 . . . . . . . . . . 2 . 246 40 220 . . . . . Purge Threat 450 | . . . . . . . . . . . . . . . . . . . . . . . . 150 . . 300 . . Squads Dispatched 89 | . 4 . . 2 . 4 . 4 . . . . 1 10 . . . . 1 . 1 3 . 9 6 1 13 9 21 Investigation 14 | . 2 . . . . 1 . . . . . . . 2 . . . . . . . 1 . 5 . . 1 . 2 Extermination 21 | . . . . . . 1 . 1 . . . . . 5 . . . . 1 . 1 . . 1 2 . 4 2 3 Reinforcement 22 | . 2 . . 2 . 2 . 1 . . . . . 2 . . . . . . . 1 . 2 1 1 3 2 3 Assault 31 | . . . . . . . . 2 . . . . 1 1 . . . . . . . 1 . . 3 . 5 5 13 Garrison 1 | . . . . . . . . . . . . . . . . . . . . . . . . 1 . . . . . Intercept . | . . . . . . . . . . . . . . . . . . . . . . . . . . . . . . Searches Triggered 1 | . . . . . . 1 . . . . . . . . . . . . . . . . . . . . . . . Construction Impeded 1 | . . . . . . . . . . . . . . . . . . . . . . 1 . . . . . . . Haulers Reinforced 2 | . . . . . . 1 . . . . . . . . . . . . . . . . . . . 1 . . . Active Scanning Responses . | . . . . . . . . . . . . . . . . . . . . . . . . . . . . . . Cargo Convoy Interrupts . | . . . . . . . . . . . . . . . . . . . . . . . . . . . . . . Stealth | -11 -10 -10 -8 -8 -8 -6 -6 -6 -6 -6 -6 -6 -5 -5 -5 -5 -5 -4 -4 -4 -4 -4 -4 -3 -3 -2 -2 -2 -1 --------- Run | Yrd Mat Sub Mat Sto Rec Fac Was Fac Low Low Zio Dee Pro Fac Upp Upp War Pro Fac Was Fac Ext Cet Res Tes Res Qua Sec Acc Distress Signals 42 | . 2 . . 3 3 . . 1 . . . . . 1 . . 1 . 1 . 1 2 2 8 1 9 2 4 1 Communications Jammed . | . . . . . . . . . . . . . . . . . . . . . . . . . . . . . . Distress Signals . | . . . . . . . . . . . . . . . . . . . . . . . . . . . . . . Times Spotted 839 | . 23 20 10 40 6 13 6 15 11 . . 36 28 43 8 12 117 4 4 6 8 51 6 98 31 36 59 66 82 Peak Tracking Total 19 | . 3 6 5 7 2 3 2 3 4 . . 13 7 5 4 5 19 2 2 3 4 6 4 9 10 6 9 13 13 Tactical Retreats 51 | . . 2 1 2 1 . . . . . . 1 6 5 . 1 4 . . . 3 5 . 6 . 1 2 6 5 Traps | -11 -10 -10 -8 -8 -8 -6 -6 -6 -6 -6 -6 -6 -5 -5 -5 -5 -5 -4 -4 -4 -4 -4 -4 -3 -3 -2 -2 -2 -1 ------- Run | Yrd Mat Sub Mat Sto Rec Fac Was Fac Low Low Zio Dee Pro Fac Upp Upp War Pro Fac Was Fac Ext Cet Res Tes Res Qua Sec Acc Traps Triggered 21 | . . 2 . 2 . 2 . 2 . . . . . . . . . . 1 . . 1 . . 5 . 3 1 2 Indirectly . | . . . . . . . . . . . . . . . . . . . . . . . . . . . . . . Trap Hack Attempts . | . . . . . . . . . . . . . . . . . . . . . . . . . . . . . . Triggered . | . . . . . . . . . . . . . . . . . . . . . . . . . . . . . . Disarmed . | . . . . . . . . . . . . . . . . . . . . . . . . . . . . . . Reprogrammed . | . . . . . . . . . . . . . . . . . . . . . . . . . . . . . . Reused . | . . . . . . . . . . . . . . . . . . . . . . . . . . . . . . Traps Extracted . | . . . . . . . . . . . . . . . . . . . . . . . . . . . . . . Installed . | . . . . . . . . . . . . . . . . . . . . . . . . . . . . . . Triggered . | . . . . . . . . . . . . . . . . . . . . . . . . . . . . . . Machines | -11 -10 -10 -8 -8 -8 -6 -6 -6 -6 -6 -6 -6 -5 -5 -5 -5 -5 -4 -4 -4 -4 -4 -4 -3 -3 -2 -2 -2 -1 ---------- Run | Yrd Mat Sub Mat Sto Rec Fac Was Fac Low Low Zio Dee Pro Fac Upp Upp War Pro Fac Was Fac Ext Cet Res Tes Res Qua Sec Acc Machines Disabled 78 | . . 1 1 2 2 1 . 28 . . 3 1 . 3 . . 1 . . . 3 3 . 6 5 4 8 3 3 Max in Single Turn 3 | . . 1 1 1 1 1 . 1 . . 2 . . 1 . . 1 . . . 2 1 . 1 2 3 1 1 1 Garrison Access 10 | . . . . . . . . 1 . . . . . 2 . . . . . . . . . 2 1 2 1 . 1 Energy Cycler 1 | . . . . . . . . . . . . . . . . . . . . . . . . . . . . . 1 Machines Repaired . | . . . . . . . . . . . . . . . . . . . . . . . . . . . . . . Machines Dismantled . | . . . . . . . . . . . . . . . . . . . . . . . . . . . . . . Machines Sabotaged . | . . . . . . . . . . . . . . . . . . . . . . . . . . . . . . Overloaded Fab Kills . | . . . . . . . . . . . . . . . . . . . . . . . . . . . . . . Hacking | -11 -10 -10 -8 -8 -8 -6 -6 -6 -6 -6 -6 -6 -5 -5 -5 -5 -5 -4 -4 -4 -4 -4 -4 -3 -3 -2 -2 -2 -1 --------- Run | Yrd Mat Sub Mat Sto Rec Fac Was Fac Low Low Zio Dee Pro Fac Upp Upp War Pro Fac Was Fac Ext Cet Res Tes Res Qua Sec Acc Machines Accessed 83 | . 4 2 3 8 12 1 . 3 1 . . . . 8 . 1 4 . 4 . 4 4 . 6 4 3 7 1 3 Terminals 45 | . 2 . 3 6 4 . . 2 . . . . . 2 . . . . 3 . 3 4 . 4 2 1 6 1 2 Fabricators 7 | . . . . . . 1 . 1 . . . . . 3 . . . . . . . . . 2 . . . . . Repair Stations . | . . . . . . . . . . . . . . . . . . . . . . . . . . . . . . Recycling Units 12 | . 2 . . 1 7 . . . . . . . . 1 . . . . . . 1 . . . . . . . . Scanalyzers 3 | . . . . . . . . . . . . . . . . . . . 1 . . . . . 1 . 1 . . Garrison Access 7 | . . . . 1 . . . . . . . . . 2 . . . . . . . . . . 1 2 . . 1 Total Hacks 157 | . 7 6 4 16 21 2 . 10 12 . . . . 20 . 1 5 . 5 . 5 4 . 10 8 4 10 3 4 Successful 88 | . 4 6 3 6 14 2 . 4 12 . . . . 11 . 1 5 . 2 . 2 2 . 5 2 2 3 1 1 Failed 69 | . 3 . 1 10 7 . . 6 . . . . . 9 . . . . 3 . 3 2 . 5 6 2 7 2 3 Catastrophic 16 | . . . . 1 . . . . . . . . . 1 . . . . 1 . 3 2 . 1 3 1 2 . 1 Database Lockouts . | . . . . . . . . . . . . . . . . . . . . . . . . . . . . . . Manual 61 | . 7 . 2 6 19 . . 7 . . . . . 4 . . . . 3 . 3 . 1 3 2 2 1 1 . Terminals 81 | . 5 . 4 10 8 . . 7 . . . . . 7 . . . . 4 . 4 4 . 6 6 2 8 3 3 Fabricators 18 | . . . . . . 2 . 3 . . . . . 9 . . . . . . . . . 4 . . . . . Repair Stations . | . . . . . . . . . . . . . . . . . . . . . . . . . . . . . . Recycling Units 18 | . 2 . . 3 11 . . . . . . . . 1 . . . . . . 1 . . . . . . . . Scanalyzers 4 | . . . . . . . . . . . . . . . . . . . 1 . . . . . 1 . 2 . . Garrison Access 10 | . . . . 3 . . . . . . . . . 3 . . . . . . . . . . 1 2 . . 1 Terminal Hacks 47 | . 1 6 2 5 3 . . 1 12 . . . . 3 . 1 5 . 1 . . 2 . 1 . . 2 1 1 Record 22 | . . 5 . . . . . . 12 . . . . . . 1 4 . . . . . . . . . . . . Part Schematic 2 | . . . . . 1 . . . . . . . . 1 . . . . . . . . . . . . . . . Prototype ID Bank 2 | . . . 1 1 . . . . . . . . . . . . . . . . . . . . . . . . . Open Door 6 | . . . . 4 . . . . . . . . . . . . 1 . . . . 1 . . . . . . . Branch Access Points 4 | . . . 1 . . . . 1 . . . . . . . . . . 1 . . . . . . . . . 1 Recycling Unit Index 1 | . 1 . . . . . . . . . . . . . . . . . . . . . . . . . . . . Alert Level 1 | . . . . . . . . . . . . . . . . . . . . . . 1 . . . . . . . Unreport Threat 3 | . . . . . . . . . . . . . . . . . . . . . . . . 1 . . 2 . . Locate Traps 2 | . . . . . . . . . . . . . . 1 . . . . . . . . . . . . . 1 . Zone Layout 1 | . . . . . . . . . . . . . . 1 . . . . . . . . . . . . . . . Proto ID Catalog 1 | . . 1 . . . . . . . . . . . . . . . . . . . . . . . . . . . Release Object 2 | . . . . . 2 . . . . . . . . . . . . . . . . . . . . . . . . Fabricator Hacks 12 | . . . . . . 2 . 1 . . . . . 6 . . . . . . . . . 3 . . . . . Load Schematic 4 | . . . . . . 1 . . . . . . . 2 . . . . . . . . . 1 . . . . . Build 8 | . . . . . . 1 . 1 . . . . . 4 . . . . . . . . . 2 . . . . . Repair Station Hacks . | . . . . . . . . . . . . . . . . . . . . . . . . . . . . . . Recycling Unit Hacks 2 | . . . . 1 . . . . . . . . . . . . . . . . 1 . . . . . . . . Retrieve Components 2 | . . . . 1 . . . . . . . . . . . . . . . . 1 . . . . . . . . Scanalyzer . | . . . . . . . . . . . . . . . . . . . . . . . . . . . . . . Garrison Access Hacks 4 | . . . . . . . . . . . . . . 2 . . . . . . . . . . 1 1 . . . Seal Access 4 | . . . . . . . . . . . . . . 2 . . . . . . . . . . 1 1 . . . Unauthorized Hacks 23 | . 3 . 1 . 11 . . 2 . . . . . . . . . . 1 . 1 . . 1 1 1 1 . . Terminals 13 | . 1 . 1 . 3 . . 2 . . . . . . . . . . 1 . 1 . . 1 1 1 1 . . Botnet 13 | . 1 . 1 . 3 . . 2 . . . . . . . . . . 1 . 1 . . 1 1 1 1 . . Fabricators . | . . . . . . . . . . . . . . . . . . . . . . . . . . . . . . Repair Stations . | . . . . . . . . . . . . . . . . . . . . . . . . . . . . . . Recycling Units 10 | . 2 . . . 8 . . . . . . . . . . . . . . . . . . . . . . . . Reject 1 | . . . . . 1 . . . . . . . . . . . . . . . . . . . . . . . . Mask 1 | . . . . . 1 . . . . . . . . . . . . . . . . . . . . . . . . Tunnel 8 | . 2 . . . 6 . . . . . . . . . . . . . . . . . . . . . . . . Scanalyzers . | . . . . . . . . . . . . . . . . . . . . . . . . . . . . . . Garrison Access . | . . . . . . . . . . . . . . . . . . . . . . . . . . . . . . Data Cores Recovered 4 | . . . . . . . . . . . . . . . . . . . . . 1 . . 2 . . . . 1 Used . | . . . . . . . . . . . . . . . . . . . . . . . . . . . . . . Hacking Detections 54 | . 2 . 2 4 6 1 . 2 . . . . . 7 . . . . 3 . 4 2 1 5 3 2 7 1 2 Full Trace Events 5 | . . . . . . 1 . . . . . . . 2 . . . . . . . . . 1 . . 1 . . Feedback Events . | . . . . . . . . . . . . . . . . . . . . . . . . . . . . . . Feedback Blocked . | . . . . . . . . . . . . . . . . . . . . . . . . . . . . . . Robot Schematics Acquired 3 | . . . . . . . . . . . 3 . . . . . . . . . . . . . . . . . . Robots Built . | . . . . . . . . . . . . . . . . . . . . . . . . . . . . . . Authchips . | . . . . . . . . . . . . . . . . . . . . . . . . . . . . . . Time . | . . . . . . . . . . . . . . . . . . . . . . . . . . . . . . Total Robot Build Rating . | . . . . . . . . . . . . . . . . . . . . . . . . . . . . . . Part Schematics Acquired 16 | . . . . . 1 . . . . . 15 . . . . . . . . . . . . . . . . . . Parts Built 15 | . . . . . . 2 . 1 . . . . . 8 . . . . . . . . . 4 . . . . . Authchips . | . . . . . . . . . . . . . . . . . . . . . . . . . . . . . . Time 860 | . . . . . . 73 . 204 . . . . . 446 . . . . . . . . . 137 . . . . . Total Part Build Rating 88 | . . . . . . 6 . 8 . . . . . 52 . . . . . . . . . 22 . . . . . Part Studies Acquired . | . . . . . . . . . . . . . . . . . . . . . . . . . . . . . . Parts Repaired . | . . . . . . . . . . . . . . . . . . . . . . . . . . . . . . Time . | . . . . . . . . . . . . . . . . . . . . . . . . . . . . . . Parts Recycled . | . . . . . . . . . . . . . . . . . . . . . . . . . . . . . . Recycled Matter . | . . . . . . . . . . . . . . . . . . . . . . . . . . . . . . Retrieved Matter . | . . . . . . . . . . . . . . . . . . . . . . . . . . . . . . Retrieved Components 6 | . . . . 3 . . . . . . . . . . . . . . . . 3 . . . . . . . . Parts Scanalyzed . | . . . . . . . . . . . . . . . . . . . . . . . . . . . . . . Part Schematics Acquired . | . . . . . . . . . . . . . . . . . . . . . . . . . . . . . . Parts Damaged . | . . . . . . . . . . . . . . . . . . . . . . . . . . . . . . Bothacking | -11 -10 -10 -8 -8 -8 -6 -6 -6 -6 -6 -6 -6 -5 -5 -5 -5 -5 -4 -4 -4 -4 -4 -4 -3 -3 -2 -2 -2 -1 ------------ Run | Yrd Mat Sub Mat Sto Rec Fac Was Fac Low Low Zio Dee Pro Fac Upp Upp War Pro Fac Was Fac Ext Cet Res Tes Res Qua Sec Acc Used RIF Installer . | . . . . . . . . . . . . . . . . . . . . . . . . . . . . . . Robots Hacked . | . . . . . . . . . . . . . . . . . . . . . . . . . . . . . . Non-combat . | . . . . . . . . . . . . . . . . . . . . . . . . . . . . . . Combat . | . . . . . . . . . . . . . . . . . . . . . . . . . . . . . . Robot Hacks Applied . | . . . . . . . . . . . . . . . . . . . . . . . . . . . . . . Relay Couplers Released 12 | . . . . . . . . 2 . . . . . . . . . . . . . . . 4 . 2 3 . 1 Machine Destruction 12 | . . . . . . . . 2 . . . . . . . . . . . . . . . 4 . 2 3 . 1 Fabnet Peak Effective % . | . . . . . . . . . . . . . . . . . . . . . . . . . . . . . . Robots Rewired 23 | . . . . . . . . . . . . . 2 . . . . . . . . 21 . . . . . . . Allies Hacked . | . . . . . . . . . . . . . . . . . . . . . . . . . . . . . . Hacks Repelled . | . . . . . . . . . . . . . . . . . . . . . . . . . . . . . . Allies | -11 -10 -10 -8 -8 -8 -6 -6 -6 -6 -6 -6 -6 -5 -5 -5 -5 -5 -4 -4 -4 -4 -4 -4 -3 -3 -2 -2 -2 -1 -------- Run | Yrd Mat Sub Mat Sto Rec Fac Was Fac Low Low Zio Dee Pro Fac Upp Upp War Pro Fac Was Fac Ext Cet Res Tes Res Qua Sec Acc Total Allies 54 | . . . . . . . 20 . . . . . 2 . . . . . . 1 . 26 5 . . . . . . Largest Group 20 | . . . . . . . 20 20 12 10 6 6 2 . . . . . . 1 . 16 14 14 . . . . . Highest-Rated Group 958 | . . . . . . . 733 733 495 403 272 272 78 . . . . . . 46 . 771 958 958 . . . . . Highest-Rated Ally 159 | . . . . . . . 50 50 50 50 50 50 49 . . . . . . 46 . 159 159 159 . . . . . Total Orders . | . . . . . . . . . . . . . . . . . . . . . . . . . . . . . . Ally Attacks 697 | . . . . . . . 25 108 38 . . 107 23 . . . . . . 11 . 175 40 170 . . . . . Total Damage 19376 | . . . . . . . 377 3613 1206 . . 1825 485 . . . . . . 294 . 4513 909 6154 . . . . . Kills 113 | . . . . . . . 2 27 9 . . 12 3 . . . . . . 1 . 25 6 28 . . . . . Allies Corrupted . | . . . . . . . . . . . . . . . . . . . . . . . . . . . . . . Allies Melted 3 | . . . . . . . . . . . . . . . . . 1 . . . . . . 2 . . . . . Intel | -11 -10 -10 -8 -8 -8 -6 -6 -6 -6 -6 -6 -6 -5 -5 -5 -5 -5 -4 -4 -4 -4 -4 -4 -3 -3 -2 -2 -2 -1 ------- Run | Yrd Mat Sub Mat Sto Rec Fac Was Fac Low Low Zio Dee Pro Fac Upp Upp War Pro Fac Was Fac Ext Cet Res Tes Res Qua Sec Acc Active Infowar (turns) 31242 | . . 391 325 832 . 805 1175 925 1805 1405 3277 1731 1330 3436 872 433 874 520 721 599 421 2158 276 1490 754 1198 1098 1042 1349 Optics 24615 | . . . . . . 695 1175 925 1805 1405 3277 1731 1330 1750 . . 411 520 721 599 421 2158 276 1482 . 445 1098 1042 1349 Sensors 14414 | . . . . . . . . . 1745 1401 2279 . . 3214 672 . . . 699 13 111 196 . 738 651 717 746 494 738 Structural 2756 | . . 391 325 832 . 110 . . . . . . . . 200 433 463 . 2 . . . . . . . . . . Traps 1967 | . . . . . . . . . . . . . . 800 . . . . . . . . 2 148 267 750 . . . Decoding 500 | . . . . . . . . . . . . . . . . . . . . . . . . 500 . . . . . Robot Analysis Total . | . . . . . . . . . . . . . . . . . . . . . . . . . . . . . . Derelict Logs Recovered 11 | . . 1 . . . . . . 2 1 1 . 3 . 1 1 . 1 . . . . . . . . . . . Drone Launches . | . . . . . . . . . . . . . . . . . . . . . . . . . . . . . . Drone Recoveries . | . . . . . . . . . . . . . . . . . . . . . . . . . . . . . . Decoded 0b10 Intel 32 | . . . . . . . . . . . . . . . . . . . . . . . . 32 . . . . . Items 32 | . . . . . . . . . . . . . . . . . . . . . . . . 32 . . . . . Exploration | -11 -10 -10 -8 -8 -8 -6 -6 -6 -6 -6 -6 -6 -5 -5 -5 -5 -5 -4 -4 -4 -4 -4 -4 -3 -3 -2 -2 -2 -1 ------------- Run | Yrd Mat Sub Mat Sto Rec Fac Was Fac Low Low Zio Dee Pro Fac Upp Upp War Pro Fac Was Fac Ext Cet Res Tes Res Qua Sec Acc Turns Passed 43924 | 71 845 3025 512 1975 6080 811 1175 925 1805 1405 3277 1731 1330 3649 1235 679 1417 520 721 599 421 2188 276 1628 821 1314 1098 1042 1349 Spaces Moved 26698 | 41 254 1592 259 675 2294 390 721 485 1015 668 1229 786 838 2035 649 557 1380 564 485 522 577 1745 146 1261 636 1386 1064 1227 1217 Core 6 | 6 . . . . . . . . . . . . . . . . . . . . . . . . . . . . . Treads 10101 | 35 254 285 . 562 980 131 285 485 1015 668 1229 318 318 101 . . . . . 445 211 871 146 803 325 560 . . 74 Legs 7521 | . . . . . . . . . . . . . 26 1274 649 286 342 . 68 . . 874 . 434 . 826 1064 535 1143 Wheels 2993 | . . 1307 259 113 1314 . . . . . . . . . . . . . . . . . . . . . . . . Hover 3682 | . . . . . . 230 . . . . . 468 494 660 . . 118 76 166 77 366 . . 24 311 . . 692 . Flight 2395 | . . . . . . 29 436 . . . . . . . . 271 920 488 251 . . . . . . . . . . Fastest Speed 42 | 50 160 105 122 122 117 102 57 158 173 173 232 113 113 117 138 62 47 56 72 79 54 54 54 54 72 72 42 42 65 Average Speed 125 | 143 228 169 137 226 185 171 96 164 173 204 263 187 134 137 138 101 71 69 115 79 60 54 54 90 97 78 61 51 66 Slowest Speed 490 | 160 320 320 175 250 490 180 158 173 173 232 264 264 172 202 138 159 113 72 149 79 79 54 54 188 134 126 72 65 82 Overloaded Moves . | . . . . . . . . . . . . . . . . . . . . . . . . . . . . . . Propulsion Burnouts . | . . . . . . . . . . . . . . . . . . . . . . . . . . . . . . Robots Hopped 2 | . . . . . . . . . . . . . . . . . 2 . . . . . . . . . . . . Potential Cave-ins 1 | . . 1 . . . . . . . . . . . . . . . . . . . . . . . . . . . Cave-ins Triggered . | . . . . . . . . . . . . . . . . . . . . . . . . . . . . . . Teleports 2 | . . . . . . . . . . . . . . . . . . . . . . . . . . . . 1 1 Exploration Rate (%) 58 | 3 27 62 21 92 99 14 96 19 93 82 88 83 84 40 73 61 89 69 10 98 16 85 60 36 53 42 91 42 31 Regions Visited 29 Branch Regions 17 Pre-discovered Areas 13 | . 2 . . . 6 . . . . . 4 . . . . . 1 . . . . . . . . . . . . Known Exits Taken 18 | . . . 1 1 . . . 1 1 1 1 . 1 1 1 1 1 1 . . 1 . . 1 1 1 1 1 . Unknown Exits Taken 7 | 1 1 1 . . 1 . . . . . . 1 . . . . . . . . . 1 1 . . . . . . Scrap Searched 32 | . . 12 . . . . . . 3 3 4 . 3 . . 2 . 5 . . . . . . . . . . . Spaces Dug 127 | . . 3 . 2 . 1 . . . 1 . . . 27 13 . 1 16 6 . 4 1 . 13 4 . 8 10 17 Terrain Destroyed 748 | . . 5 1 4 18 10 9 5 7 2 . 39 55 54 16 . 18 21 11 21 38 25 3 111 22 22 69 112 50 Melee 5 | . . . . . . . . . . . . . . 5 . . . . . . . . . . . . . . . Projectile 584 | . . 5 1 4 4 10 9 5 7 2 . 15 21 49 16 . 18 21 11 21 11 25 3 111 22 22 51 85 35 AOE 159 | . . . . . 14 . . . . . . 24 34 . . . . . . . 27 . . . . . 18 27 15 Terrain Rammed . | . . . . . . . . . . . . . . . . . . . . . . . . . . . . . . Walls Destroyed . | . . . . . . . . . . . . . . . . . . . . . . . . . . . . . . Machines Disabled . | . . . . . . . . . . . . . . . . . . . . . . . . . . . . . . Actions | -11 -10 -10 -8 -8 -8 -6 -6 -6 -6 -6 -6 -6 -5 -5 -5 -5 -5 -4 -4 -4 -4 -4 -4 -3 -3 -2 -2 -2 -1 --------- Run | Yrd Mat Sub Mat Sto Rec Fac Was Fac Low Low Zio Dee Pro Fac Upp Upp War Pro Fac Was Fac Ext Cet Res Tes Res Qua Sec Acc Total 35157 | 50 398 1819 348 990 3921 500 1179 607 1057 705 1267 1008 999 2730 949 627 1741 648 629 643 638 2916 334 1615 768 1556 1376 1523 1616 Wait 5325 | . 72 92 9 157 1371 57 416 92 27 31 19 125 101 414 251 17 249 31 108 30 33 819 174 120 20 71 113 128 178 Move 26666 | 40 253 1591 258 674 2293 390 720 484 1014 667 1228 785 837 2034 648 556 1375 563 485 521 576 1744 145 1260 635 1385 1063 1226 1216 Hop 2 | . . . . . . . . . . . . . . . . . 2 . . . . . . . . . . . . Pick Up 302 | 4 7 29 19 19 28 7 9 9 2 . 4 13 1 24 . 5 12 3 4 13 4 15 1 13 7 15 15 7 13 Fast Attach 108 | 6 1 9 9 11 1 1 . 1 . 2 3 11 . 2 1 . 4 . . 2 2 3 1 12 7 4 5 6 4 Attach 96 | . 1 7 9 2 4 4 . 3 1 1 3 1 2 8 2 . 2 1 1 . 1 6 2 7 6 2 4 6 10 Detach 31 | . . 4 2 3 1 . . 2 1 . 2 1 . 3 . . . . . . 2 . . 2 1 1 2 1 3 Swap 225 | . 2 2 5 19 4 1 . . 4 . . 1 . 40 1 5 6 . 7 14 3 22 2 13 10 7 18 24 15 Drop 277 | . 1 14 2 31 43 2 8 7 1 1 6 24 6 14 2 1 12 3 6 . 4 8 1 25 6 12 14 8 15 Fire 1819 | . 61 71 35 74 132 38 26 9 7 3 2 47 47 182 44 43 79 47 18 63 12 73 8 149 70 59 142 116 162 Melee 53 | . . . . . 44 . . . . . . . . 9 . . . . . . . . . . . . . . . Ram 2 | . . . . . . . . . . . . . . . . . . . . . 1 . . . . . . 1 . Kick . | . . . . . . . . . . . . . . . . . . . . . . . . . . . . . . Crush . | . . . . . . . . . . . . . . . . . . . . . . . . . . . . . . Escape Stasis 25 | . . . . . . . . . . . . . . . . . . . . . . 5 . 14 6 . . . . Rewire 226 | . . . . . . . . . . . . . 5 . . . . . . . . 221 . . . . . . . Trap . | . . . . . . . . . . . . . . . . . . . . . . . . . . . . . . Miscellaneous . | . . . . . . . . . . . . . . . . . . . . . . . . . . . . . . Route ------- -11/Scrapyard -10/Materials -10/Subcaves (discovered 2 exits: *Mat / Rec) -8/Materials (discovered 2 exits: *Sto x2) -8/Storage (discovered 2 exits: [*Fac] / *Rec) -8/Recycling -6/Factory -6/Waste -6/Factory (discovered 2 exits: *Low x2) -6/Lower Caves -6/Lower Caves (discovered 2 exits: *Fac / *Zio) -6/Zion (discovered 2 exits: *Dee / [*Pro]) -6/Deep Caves -5/Proximity Caves -5/Factory (discovered 5 exits: *Fac x3 / *Upp x2) -5/Upper Caves -5/Upper Caves -5/Warlord -4/Proximity Caves -4/Factory (discovered 5 exits: Upp x2 / Ext x2 / Arm) -4/Waste -4/Factory -4/Extension (discovered 2 exits: *Res / *Cet) -4/Cetus (discovered 2 exits: *Res / [*Arc]) -3/Research (discovered 3 exits: *Res x2 / *Tes) -3/Testing -2/Research (discovered 4 exits: *Acc x2 / *Qua x2) -2/Quarantine (discovered 3 exits: *Acc / *Sec / *Frg) -2/Section 7 -1/Access (discovered 2 exits: *Sur / Com) To Epsilon Eridani History --------- Turn | Location | Event 18 | -11/Scrapyard | Discovered new exit (range 16) 72 | -11/Scrapyard | Entered Materials 312 | -10/Materials | Build established: Mutant 330 | -10/Materials | Discovered new exit (range 8) 917 | -10/Materials | Entered Subcaves 918 | -10/Subcaves | Approached by a straggling Scientist 1431 | -10/Subcaves | Visited 4L-MR0's lab 1459 | -10/Subcaves | Found Rainbow Chip 2127 | -10/Subcaves | A Subdweller sparked back to life 2127 | -10/Subcaves | A Subdweller sparked back to life 2127 | -10/Subcaves | A Subdweller sparked back to life 2136 | -10/Subcaves | Core integrity fell below 50% 2153 | -10/Subcaves | Found Meta Core 2176 | -10/Subcaves | Lost 3 parts (1n1u1w) 2376 | -10/Subcaves | Core integrity fell below 20% 2571 | -10/Subcaves | A swath of the cavern ceiling suddenly collapsed 2600 | -10/Subcaves | Learned Materials emergency access door positions 2688 | -10/Subcaves | Build established: Scavenger-Mutant 2773 | -10/Subcaves | Disturbed a concealed Subdweller 3259 | -10/Subcaves | Build established: Subdweller-Mutant 3473 | -10/Subcaves | Visited Clippyterm 3476 | -10/Subcaves | Identified exit to Recycling 3476 | -10/Subcaves | Learned Factory stockpile data 3831 | -10/Subcaves | Discovered new exit (range 12) 3942 | -10/Subcaves | Entered Materials 3942 | -8/Materials | Evolved 4 slots: Propulsion x2, Utility x2 3953 | -8/Materials | Discovered new exit (range 16) 4024 | -8/Materials | Core integrity fell below 50% 4068 | -8/Materials | Lost 8 parts (2p3n3w) 4374 | -8/Materials | Identified exit to Storage 4454 | -8/Materials | Entered Storage 4472 | -8/Storage | Build established: Scavenger-Mutant 5085 | -8/Storage | Discovered new exit (range 5) 5815 | -8/Storage | Build established: Mutant 6419 | -8/Storage | Used back door to open Recycling access 6419 | -8/Storage | Discovered exit to Recycling (range 5) 6429 | -8/Storage | Entered Recycling 6982 | -8/Recycling | Entered Scraplab 6990 | -8/Recycling | Found Prototype Device 6990 | -8/Recycling | Identified Scrap Engine 7418 | -8/Recycling | Discovered new exit (range 16) 9303 | -8/Recycling | Build established: Construct 12509 | -8/Recycling | Entered Factory 12509 | -6/Factory | Evolved 4 slots: Power x1, Propulsion x1, Utility x1, Weapon x1 12622 | -6/Factory | Attached Rainbow Chip, gained temporary slots: Power, Propulsion, Utility, Weapon 12796 | -6/Factory | Discovered new exit (range 9) 12859 | -6/Factory | Search patrols dispatched 13083 | -6/Factory | Attached Meta Core, gained temporary slots: Propulsion, Utility, Weapon 13099 | -6/Factory | Fabricated Cryofiber Web? 13320 | -6/Factory | Sucked down chute 13320 | -6/Factory | Entered Waste 13321 | -6/Waste | Met a frightened Derelict 13398 | -6/Waste | Spotted C-40 Crusher 13403 | -6/Waste | Destroyed C-40 Crusher 13521 | -6/Waste | Spotted C-40 Crusher 13524 | -6/Waste | Destroyed C-40 Crusher 13539 | -6/Waste | Found Damper Plating 13589 | -6/Waste | Spotted C-40 Crusher 13597 | -6/Waste | Destroyed C-40 Crusher 13598 | -6/Waste | Spotted C-40 Crusher 13607 | -6/Waste | Spotted C-40 Crusher 13610 | -6/Waste | Destroyed C-40 Crusher 13623 | -6/Waste | Allies destroyed C-40 Crusher 13662 | -6/Waste | Spotted C-40 Crusher 13677 | -6/Waste | Allies destroyed C-40 Crusher 13712 | -6/Waste | Discovered new exit (range 14) 13751 | -6/Waste | Warlord forces began an assault 14495 | -6/Waste | Entered Factory 14495 | -6/Factory | Accompanied by 20 allies 14752 | -6/Factory | Lost 3 allies 14991 | -6/Factory | Fabricated Spectral Analyzer (x1) 15129 | -6/Factory | Identified exit to Lower Caves 15268 | -6/Factory | Lost 3 allies 15420 | -6/Factory | Entered Lower Caves 15420 | -6/Lower Caves | Accompanied by 12 allies 15441 | -6/Lower Caves | Learned Factory emergency access door positions 15667 | -6/Lower Caves | Spotted B-75 Beast 15671 | -6/Lower Caves | Learned Factory trap positions 15885 | -6/Lower Caves | Encountered a Warlord checkpoint 16737 | -6/Lower Caves | Discovered new exit (range 13) 16795 | -6/Lower Caves | Identified exit to Lower Caves 17225 | -6/Lower Caves | Entered another Lower Caves area 17225 | -6/Lower Caves | Accompanied by 10 allies 17307 | -6/Lower Caves | Discovered new exit (range 22) 17442 | -6/Lower Caves | Identified exit to Factory 17707 | -6/Lower Caves | Found DCF Scrap (10 items) 17937 | -6/Lower Caves | Found Alien Artifact 17937 | -6/Lower Caves | Identified Core Expander 17937 | -6/Lower Caves | Installed Core Expander, added new Utility slot 18387 | -6/Lower Caves | Discovered new exit (range 7) 18389 | -6/Lower Caves | Lost 4 allies 18403 | -6/Lower Caves | Identified exit to Zion 18630 | -6/Lower Caves | Entered Zion 18630 | -6/Zion | Accompanied by 6 allies 18811 | -6/Zion | Discovered new exit (range 16) 18848 | -6/Zion | Found CR-A16's Pointy Stick 19145 | -6/Zion | Learned Factory emergency access door positions 19174 | -6/Zion | Learned location of Quarantine (-2) 19232 | -6/Zion | Learned Factory stockpile data 19422 | -6/Zion | Learned location of Warlord (-5) 19795 | -6/Zion | Learned Factory recycling unit intel 19853 | -6/Zion | Found Prototype Processor 19853 | -6/Zion | Identified Exp. Armor Integrity Analyzer 19860 | -6/Zion | Found Prototype Processor 19860 | -6/Zion | Identified Exp. Melee Analysis Suite 19865 | -6/Zion | Found Prototype Processor 19865 | -6/Zion | Identified Exp. Core Analyzer 19978 | -6/Zion | Met Imprinter 20504 | -6/Zion | Found Exp. Armor Integrity Analyzer 21144 | -6/Zion | Discovered new exit (range 4) 21144 | -6/Zion | Saw the warning signs outside the Deep Caves entrance 21155 | -6/Zion | Identified exit to Deep Caves 21907 | -6/Zion | Entered Deep Caves 21907 | -6/Deep Caves | Accompanied by 6 allies 21910 | -6/Deep Caves | Met 5H-AD0 22249 | -6/Deep Caves | Z-Facility disabled 22277 | -6/Deep Caves | Attacked by Z-Imprinter 22287 | -6/Deep Caves | Destroyed Z-Imprinter 22340 | -6/Deep Caves | Lost 3 allies 22432 | -6/Deep Caves | Thanked by 5H-AD0 22594 | -6/Deep Caves | Found Prototype Protection 22594 | -6/Deep Caves | Identified Zio. Weapon Casing 22810 | -6/Deep Caves | Found Prototype Protection 22810 | -6/Deep Caves | Identified Zio. Heavy Carapace 23343 | -6/Deep Caves | Spotted Golem 23387 | -6/Deep Caves | Exposed GOLEM chamber 23388 | -6/Deep Caves | Triggered Deep Caves wall 23401 | -6/Deep Caves | Destroyed Golem 23451 | -6/Deep Caves | Destroyed 10 combat bots 23477 | -6/Deep Caves | Spotted Assembler 23505 | -6/Deep Caves | Destroyed 11 combat bots 23589 | -6/Deep Caves | Discovered new exit (range 6) 23638 | -6/Deep Caves | Entered Proximity Caves 23641 | -5/Proximity Caves | Spotter reported a threat 23818 | -5/Proximity Caves | Core integrity fell below 50% 23857 | -5/Proximity Caves | Attracted the attention of an 0b10 outpost 24550 | -5/Proximity Caves | Learned 12 Factory zone layouts 24573 | -5/Proximity Caves | Learned Factory garrison access intel 24633 | -5/Proximity Caves | Spotted B-75 Beast 24646 | -5/Proximity Caves | Destroyed B-75 Beast 24670 | -5/Proximity Caves | Attracted the attention of an 0b10 checkpoint 24919 | -5/Proximity Caves | Discovered exit to Factory (range 15) 24968 | -5/Proximity Caves | Entered Factory 24968 | -5/Factory | Evolved 2 slots: Utility x2 24969 | -5/Factory | Identified exit to Factory 24969 | -5/Factory | Identified exit to Upper Caves 24970 | -5/Factory | Loaded intel: 121 trap records 24973 | -5/Factory | Loaded intel: 8 recycling unit locations 24974 | -5/Factory | Loaded intel: 4 garrison access locations 25417 | -5/Factory | Fabricated Hyp. Mass Driver (x2) 25882 | -5/Factory | Discovered exit to Factory (range 11) 26419 | -5/Factory | Fabricated Lgt. Quantum Reactor? 27260 | -5/Factory | Discovered exit to Upper Caves (range 15) 27367 | -5/Factory | Discovered exit to Factory (range 11) 27897 | -5/Factory | System corruption reached 10% 27944 | -5/Factory | Fabricated Hvy. Flak Cannon? 28453 | -5/Factory | Fabricated Hvy. Flak Cannon? 28568 | -5/Factory | First assault squad dispatched 28617 | -5/Factory | Entered Upper Caves 29664 | -5/Upper Caves | Discovered new exit (range 16) 29709 | -5/Upper Caves | Identified exit to Upper Caves 29852 | -5/Upper Caves | Entered another Upper Caves area 29853 | -5/Upper Caves | Identified exit to Warlord 30220 | -5/Upper Caves | Core integrity fell below 50% 30424 | -5/Upper Caves | Encountered a Warlord checkpoint 30463 | -5/Upper Caves | Entered a destroyed Warlord outpost 30531 | -5/Upper Caves | Entered Warlord 30555 | -5/Warlord | System corruption cleaned by Quarantine Array 30607 | -5/Warlord | Found Exp. Core Analyzer 30912 | -5/Warlord | Learned Research trap positions 30913 | -5/Warlord | Learned 4 Command zone layouts 30913 | -5/Warlord | Learned Armory security intel 30964 | -5/Warlord | Warlord's base attacked by MAIN.C 30988 | -5/Warlord | Met Warlord 31023 | -5/Warlord | Found Prototype Energy Gun 31025 | -5/Warlord | Found Prototype Piercing Weapon 31025 | -5/Warlord | Identified Vortex Lance 31228 | -5/Warlord | Spotted B-86 Titan 31309 | -5/Warlord | Spotted B-75 Beast 31314 | -5/Warlord | Warlord forces counterattacked 31335 | -5/Warlord | Spotted B-86 Titan 31387 | -5/Warlord | Spotted Striker 31407 | -5/Warlord | Spotted Executioner 31426 | -5/Warlord | Spotted Striker 31431 | -5/Warlord | Destroyed Striker 31509 | -5/Warlord | Spotted Executioner 31513 | -5/Warlord | Spotted Executioner 31517 | -5/Warlord | Discovered new exit (range 15) 31541 | -5/Warlord | Found Exp. Core Analyzer 31554 | -5/Warlord | Lost 3 allies 31609 | -5/Warlord | Lost 9 allies 31639 | -5/Warlord | Warlord base infiltrated, sounded retreat 31825 | -5/Warlord | Spotted Striker 31825 | -5/Warlord | Spotted Executioner 31826 | -5/Warlord | Spotted Executioner 31863 | -5/Warlord | Destroyed Executioner 31878 | -5/Warlord | Spotted Executioner 31879 | -5/Warlord | Spotted Striker 31885 | -5/Warlord | Destroyed Executioner 31889 | -5/Warlord | Spotted Executioner 31905 | -5/Warlord | Core integrity fell below 20% 31926 | -5/Warlord | Identified exit to Proximity Caves 31934 | -5/Warlord | Found Prototype Processor 31938 | -5/Warlord | Lost 21 allies 31938 | -5/Warlord | Found Exp. Core Analyzer 31948 | -5/Warlord | Entered Proximity Caves 32298 | -4/Proximity Caves | Spotted B-86 Titan 32325 | -4/Proximity Caves | Destroyed B-86 Titan 32388 | -4/Proximity Caves | Learned Research trap positions 32450 | -4/Proximity Caves | Discovered exit to Factory (range 5) 32468 | -4/Proximity Caves | Entered Factory 32468 | -4/Factory | Evolved 2 slots: Utility x1, Weapon x1 32469 | -4/Factory | Identified exit to Armory 32905 | -4/Factory | Identified exit to Upper Caves 32905 | -4/Factory | Identified exit to Extension 33189 | -4/Factory | Sucked down chute 33189 | -4/Factory | Entered Waste 33190 | -4/Waste | Met a frightened Derelict 33204 | -4/Waste | EMP discharged 33279 | -4/Waste | Spotted C-40 Crusher 33291 | -4/Waste | Allies destroyed C-40 Crusher 33298 | -4/Waste | Spotted C-40 Crusher 33304 | -4/Waste | EMP discharged 33319 | -4/Waste | Spotted C-40 Crusher 33319 | -4/Waste | Spotted C-40 Crusher 33325 | -4/Waste | Destroyed C-40 Crusher 33349 | -4/Waste | Destroyed C-40 Crusher 33359 | -4/Waste | Crushed by Compactor (0 parts destroyed, 1 dropped) 33397 | -4/Waste | Destroyed C-40 Crusher 33404 | -4/Waste | EMP discharged 33404 | -4/Waste | System corruption reached 10% 33445 | -4/Waste | Spotted C-40 Crusher 33449 | -4/Waste | Spotted C-40 Crusher 33504 | -4/Waste | EMP discharged 33547 | -4/Waste | Destroyed C-40 Crusher 33555 | -4/Waste | Destroyed C-40 Crusher 33604 | -4/Waste | EMP discharged 33631 | -4/Waste | Discovered new exit (range 14) 33704 | -4/Waste | EMP discharged 33704 | -4/Waste | System corruption reached 30% 33786 | -4/Waste | Identified exit to Factory 33788 | -4/Waste | Entered Factory 33963 | -4/Factory | Discovered exit to Extension (range 16) 34209 | -4/Factory | Entered Extension 35115 | -4/Extension | Build established: Scavenger-Construct 35364 | -4/Extension | Rescued a captive Derelict 35368 | -4/Extension | Rescued a captive Derelict 35648 | -4/Extension | Build established: Commander-Construct 35712 | -4/Extension | Spotted B-86 Titan 35740 | -4/Extension | Destroyed B-86 Titan 35744 | -4/Extension | Spotted B-86 Titan 35772 | -4/Extension | Allies destroyed B-86 Titan 35812 | -4/Extension | Lost 5 allies 35889 | -4/Extension | Core integrity fell below 50% 35959 | -4/Extension | First assault squad dispatched 36022 | -4/Extension | Rescued a captive Derelict 36025 | -4/Extension | Rescued a captive Derelict 36049 | -4/Extension | Rescued A7 36247 | -4/Extension | Lost 3 allies 36315 | -4/Extension | Discovered new exit (range 10) 36315 | -4/Extension | Discovered new exit (range 6) 36321 | -4/Extension | Lost 6 allies 36397 | -4/Extension | Entered Cetus 36397 | -4/Cetus | Accompanied by 11 allies (A7) 36400 | -4/Cetus | Spotted Cetus Guard 36400 | -4/Cetus | Spotted Cetus Guard 36402 | -4/Cetus | Acquired a Cetus Manufacturing Module code from A7 36407 | -4/Cetus | Spotted Cetus Guard 36407 | -4/Cetus | Destroyed Cetus Guard 36408 | -4/Cetus | Spotted Cetus Guard 36412 | -4/Cetus | Allies destroyed Cetus Guard 36413 | -4/Cetus | Destroyed Cetus Guard 36424 | -4/Cetus | Allies destroyed Cetus Guard 36462 | -4/Cetus | Started Cetus Manufacturing Module 36465 | -4/Cetus | Discovered new exit (range 23) 36487 | -4/Cetus | Manufactured an Enhanced Grunt 36512 | -4/Cetus | Manufactured an Enhanced Grunt 36537 | -4/Cetus | Manufactured an Enhanced Grunt 36562 | -4/Cetus | Manufactured an Enhanced Grunt 36578 | -4/Cetus | Spotted Cetus Guard 36580 | -4/Cetus | Spotted Cetus Guard 36580 | -4/Cetus | Destroyed Cetus Guard 36580 | -4/Cetus | Spotted Cetus Guard 36583 | -4/Cetus | Spotted Cetus Guard 36587 | -4/Cetus | Manufactured an Enhanced Grunt 36588 | -4/Cetus | Allies destroyed Cetus Guard 36596 | -4/Cetus | Discovered new exit (range 23) 36597 | -4/Cetus | Allies destroyed Cetus Guard 36598 | -4/Cetus | Destroyed Cetus Guard 36607 | -4/Cetus | Met Revision 17 36673 | -4/Cetus | Entered Research 36673 | -3/Research | Accompanied by 14 allies (A7) 36673 | -3/Research | Evolved 2 slots: Propulsion x1, Utility x1 36674 | -3/Research | Loaded intel: 99 trap records 36687 | -3/Research | Discovered new exit (range 16) 36754 | -3/Research | Found Prototype Device 36754 | -3/Research | Identified Exp. Thermal Shield 36797 | -3/Research | Spotted B-86 Titan 36835 | -3/Research | Discovered new exit (range 12) 36842 | -3/Research | Garrison activated, responded to threat 36873 | -3/Research | Revision forces began assault on 0b10 36881 | -3/Research | Allies destroyed B-86 Titan 36897 | -3/Research | Met up with Revision 17++ 36928 | -3/Research | Lost 4 allies 36956 | -3/Research | Fabricated Cryofiber Web (x2) 37195 | -3/Research | Found Prototype Processor 37195 | -3/Research | Identified Exp. Signal Interpreter 37201 | -3/Research | Found Exp. Signal Interpreter 37203 | -3/Research | Found Exp. Signal Interpreter 37226 | -3/Research | Identified Exp. Targeting Computer 37230 | -3/Research | Fabricated Hyp. Railgun? 37333 | -3/Research | Identified exit to Research 37364 | -3/Research | Found Prototype Device 37364 | -3/Research | Identified Adv. EM Shield 37373 | -3/Research | Research terminal network offline 37703 | -3/Research | Build established: Scavenger-Construct 37855 | -3/Research | High security lockdown imminent 37935 | -3/Research | High security lockdown engaged 38022 | -3/Research | Destroyed 8 combat bots 38028 | -3/Research | Spotted Striker 38049 | -3/Research | Discovered new exit (range 3) 38052 | -3/Research | Identified exit to Testing 38066 | -3/Research | Destroyed Striker 38081 | -3/Research | Lost 4 allies 38096 | -3/Research | Destroyed 8 combat bots 38208 | -3/Research | Scanned by Researcher 38211 | -3/Research | Destroyed Investigator 38212 | -3/Research | Lost 4 parts (4u) 38228 | -3/Research | Spotted Investigator 38232 | -3/Research | Destroyed Investigator 38258 | -3/Research | System corruption reached 10% 38285 | -3/Research | Destroyed 21 combat bots 38301 | -3/Research | Entered Testing 38490 | -3/Testing | Found Prototype Device 38490 | -3/Testing | Identified Exp. Thermal Defense Suite 38551 | -3/Testing | First assault squad dispatched 38603 | -3/Testing | Found Prototype Device 38606 | -3/Testing | Found Prototype Device 38608 | -3/Testing | Found Prototype Device 38619 | -3/Testing | Identified Exp. EM Disruption Field (x3) 38685 | -3/Testing | Discovered exit to Research (range 13) 38887 | -3/Testing | Destroyed 10 combat bots 39085 | -3/Testing | High security lockdown imminent 39122 | -3/Testing | Entered Research 39122 | -2/Research | Warlord forces began assault on 0b10 39122 | -2/Research | Evolved 2 slots: Propulsion x1, Utility x1 39123 | -2/Research | Loaded intel: 74 trap records 39142 | -2/Research | Build established: Construct 39232 | -2/Research | Research machine network offline 39396 | -2/Research | Found Exp. Core Analyzer 39398 | -2/Research | Found Exp. Core Analyzer 39400 | -2/Research | Found Faulty Exp. Core Analyzer 39465 | -2/Research | Borebot progress halted 39485 | -2/Research | Discovered new exit (range 9) 39491 | -2/Research | Identified exit to Access 39543 | -2/Research | Met DD-05H 39593 | -2/Research | Discovered new exit (range 5) 39596 | -2/Research | Identified exit to Quarantine 39688 | -2/Research | Discovered exit to Access (range 15) 39785 | -2/Research | Met up with Warlord 39849 | -2/Research | Spotted Striker 39870 | -2/Research | Spotted Striker 39876 | -2/Research | Spotted Striker 39881 | -2/Research | Destroyed Striker 39892 | -2/Research | Destroyed Striker 39893 | -2/Research | Spotted Executioner 39909 | -2/Research | Destroyed Executioner 39942 | -2/Research | Borebot progress halted 39999 | -2/Research | Spotted Striker 40060 | -2/Research | Borebot progress halted 40122 | -2/Research | Warlord invited to help at Command 40122 | -2/Research | Given Cave Seal Controls access code 40139 | -2/Research | Spotted Striker 40141 | -2/Research | Spotted Striker 40259 | -2/Research | Spotted Striker 40342 | -2/Research | Spotted Executioner 40356 | -2/Research | Destroyed Executioner 40377 | -2/Research | Lost 5 allies 40432 | -2/Research | Discovered exit to Quarantine (range 5) 40436 | -2/Research | Entered Quarantine 40526 | -2/Quarantine | Lost 6 allies 40622 | -2/Quarantine | Found Alien Artifact 40686 | -2/Quarantine | First assault squad dispatched 40695 | -2/Quarantine | Cryocooling Duct disabled 40702 | -2/Quarantine | Found Alien Artifact 40702 | -2/Quarantine | Identified Dimensional Node Initializer 40702 | -2/Quarantine | Initialized slip node 40707 | -2/Quarantine | Found Dimensional Node Initializer 40710 | -2/Quarantine | Ambient heat levels rising (+20) 40710 | -2/Quarantine | Non-combat units ordered to evacuate 40712 | -2/Quarantine | Found Alien Artifact 40716 | -2/Quarantine | Found Alien Artifact 40718 | -2/Quarantine | Found Alien Artifact 40885 | -2/Quarantine | Build established: Scavenger-Construct 41070 | -2/Quarantine | Destroyed 12 combat bots 41318 | -2/Quarantine | Destroyed 20 combat bots 41346 | -2/Quarantine | Found Alien Artifact 41356 | -2/Quarantine | Discovered exit to Access (range 13) 41369 | -2/Quarantine | Found Alien Artifact 41369 | -2/Quarantine | Identified Phase Redirector 41493 | -2/Quarantine | Spotted Fortress 41530 | -2/Quarantine | Discovered new exit (range 6) 41530 | -2/Quarantine | Discovered new exit (range 7) 41532 | -2/Quarantine | Identified exit to Protoforge 41533 | -2/Quarantine | Identified exit to Section 7 41534 | -2/Quarantine | Entered Section 7 41784 | -2/Section 7 | First assault squad dispatched 41856 | -2/Section 7 | Spotted Alpha 7 41860 | -2/Section 7 | Spotted Alpha 7 41898 | -2/Section 7 | Build established: Construct 42110 | -2/Section 7 | Identified Transdimensional Reconstructor (x2) 42110 | -2/Section 7 | Warped through subspace 42140 | -2/Section 7 | Lost 3 parts (3u) 42196 | -2/Section 7 | Found Alien Artifact 42196 | -2/Section 7 | Identified Integrated Reactor 42196 | -2/Section 7 | Installed Integrated Reactor, increased core energy generation (+10) 42218 | -2/Section 7 | Found Alien Artifact 42218 | -2/Section 7 | Identified Integrity Redistributor 42218 | -2/Section 7 | Used Integrity Redistributor, redistributed integrity from core (-249) 42426 | -2/Section 7 | Spotted B-90 Cyclops 42433 | -2/Section 7 | Build established: Scavenger-Construct 42568 | -2/Section 7 | Discovered exit to Access (range 13) 42576 | -2/Section 7 | Entered Access 42576 | -1/Access | Evolved 2 slots: Power x1, Utility x1 42679 | -1/Access | Energy Cycler disabled 42805 | -1/Access | Destroyed 7 combat bots 42826 | -1/Access | First assault squad dispatched 42871 | -1/Access | Discovered new exit (range 7) 42872 | -1/Access | Initialized slip node 42939 | -1/Access | Spotted B-99 Colossus 42974 | -1/Access | Destroyed B-99 Colossus 43143 | -1/Access | Destroyed 7 combat bots 43397 | -1/Access | Identified Hpw. Transdimensional Reconstructor 43397 | -1/Access | Warped through subspace to slip node 43537 | -1/Access | Identified exit to Command 43628 | -1/Access | High security lockdown imminent 43684 | -1/Access | Identified exit to Surface 43708 | -1/Access | High security lockdown engaged 43886 | -1/Access | System corruption reached 10% 43904 | -1/Access | Destroyed 14 combat bots 43925 | *** | Escaped! Last Messages --------------- 43911_ Cryofiber Web destroyed. 43912_ U-05 Engineer lays Concrete. 43913_ Critical hit (Burn: +37). 43913_ Adv. Cooling System blown off. 43913_ E-15 Imp destroyed. 43914_ System corrupted: Substantial component data lost. 43914_ U-05 Engineer lays Concrete. 43916_ Acquired Adv. Cooling System. 43916_ U-05 Engineer lays Concrete. 43918_ The unstable cave ceiling collapses. 43918_ U-05 Engineer builds a Wall. 43918_ Hvy. Kinetic Hardcell Construct/C destroyed. 43918_ Hvy. Kinetic Hardcell Construct/C core remains intact and functional. 43922_ U-05 Engineer lays Concrete. 43923_ U-05 Engineer builds a Reinforced Barrier. 43923_ Destroyed Med. Treads. Map ----- +----------------------------------------------------+ | ??????????# ## #?? #???????? | | ??????????# ## # #???????? | | ??????????# "" ## " + #???????? | | ??????????# "" ## # #???????? | | ??????????#"""""" ### ###############???????? | | ??????????#"""""" #?# # """"" #???????????? | | ??????????# "" #?# # """"" #???????????? | | ?########## "" ### + "" F" #???????????? | | ?# ^ # # # #???????????? | | ?# # #???????????? | | ?# " * ######/##### =/! !! #???????????? | | ?# "" [ # %[! ! =%/ !! #???????????? | | ?# G ! !"% ==% / ! ! ! #???????????? | | ## "=% %" =# = ## # = ##########???????????? | | / "! [=%![=###### # ####????????????????????? | | ## =!*=!*^#????#### ###???????????????????????? | | ?# = [ "! #???????###?????????????????????????? | | ?#####""""" [#???????????????????????????????????? | | ?????# ## #?????###?###???????????????????????? | | ?????####?# ####### ###;######??????????????????? | | ?????????## =""=T"""=!* "??????????????????? | | ?????????#!%!!"%g "%%!!* ""?????????????????? | | ?????????#!!!!!!!g[=%= ! "?????????????????? | | ?????????#!%]|%=g %!%=!! ""?????????????????? | | ?????????##=!!= %g*=!b/ "" "??????????????????? | | ?????????#;! Q l @" "??????????????????? | | ?????????## =* "??????????????????? | | ?????????#; "??????????????????? | | ?????????## "??????????#???????? | | ??????????# gg u "??????????# ?????? | | ??????????# %#;# ## # #######??????????# ????? | | ??????????# "## ## # ## ????????????????# ??? | | ??????????# ### ### #?????????######## ? | | ??????????# #?# # ##???????????# ## | | ??????????# #?### ???????????# ## | | ??????????# #???######???????????# ## | | ??????????# ###################### ## | | ??????????# + ########## | | ??????????# # #????????? | | ??????????######+############### # #????????? | | ??????????# #???????# # #????????# | | ??????????# #???????# # #????????# | | ??????????#"" #???????# # #????????# | | ??????????#"" ######### ###+############ | | ??????????#"" ! + | | ??????????#"Y ######### ## | | ??????????#"" #???????#+#############+##? | | ??????????#"" #?????? ????????? ? | | ??????????#"" !! #???? ????? | | ??????????# ! #?? ??# | +----------------------------------------------------+ Best States ------------- Heat Dissipation 196 Coolant Potential 100 Energy Generation 75 Energy Capacity 1224 Matter Stores 300 Matter Capacity 300 Sight Range 23 Robot Scan Range 18 Terrain Scan Density 10 Base Temperature (-) 200 EM Shielding 2 Armor Coverage 800 Resistance: KI 25 Resistance: TH 30 Resistance: EM 50 Weapon Cycling 20 Phase Shifting 15 Evasion (%) 89 Targeting Accuracy 16 Core Analysis 8 Armor Integrity Analysis 50 Recoil Reduction 6 Matter Filtering 30 Item Schematics ----------------- Cryofiber Web | -8/Recycling | Hacked Power Amplifier | -6/Zion | Archive Adv. Hacking Suite | -6/Zion | Archive Hvy. Plasma Cannon | -6/Zion | Archive Variable Charge Gun | -6/Zion | Archive Hvy. Flak Cannon | -6/Zion | Archive Point Defense System | -6/Zion | Archive Adv. Signal Interpreter | -6/Zion | Archive Railgun | -6/Zion | Archive Adv. Thermal Shield | -6/Zion | Archive Nuclear Pulse Thruster | -6/Zion | Archive Imp. Transmission Jammer | -6/Zion | Archive Thermal Shield | -6/Zion | Archive Antigrav System | -6/Zion | Archive Mass Driver | -6/Zion | Archive IFF Parser | -6/Zion | Archive Robot Schematics ------------------ K-01 Serf | -6/Zion | Archive T-07 Excavator | -6/Zion | Archive A-15 Conveyor | -6/Zion | Archive Fabricated ------------ Cryofiber Web | x2 | -6/Factory Spectral Analyzer | x1 | -6/Factory | Preloaded Hyp. Mass Driver | x2 | -5/Factory | Preloaded Lgt. Quantum Reactor | x2 | -5/Factory | Preloaded Hvy. Flak Cannon | x2 | -5/Factory Hvy. Flak Cannon | x2 | -5/Factory Cryofiber Web | x2 | -3/Research Hyp. Railgun | x2 | -3/Research | Preloaded Repaired ---------- Nothing Studied --------- None Alien Tech Used ----------------- Core Expander Dimensional Node Initializer Phase Redirector Transdimensional Reconstructor Integrated Reactor Integrity Redistributor High-powered Transdimensional Reconstructor Achievements -------------- Are We The Baddies? Production Line That's One Door That Should Stay Closed Challenges ------------ None Game ------ Seed PhasingOmegaPurifier Manual? 0 Play Time 06:36:24 Cumulative 377.8 hours Start 2026.09.10 @ 21:05:24 End 2026.09.11 @ 05:10:24 Sessions 7 Manual Loads 0 Difficulty Rogue Special Mode None Game No. 341 Rogue 287 Adventurer 54 Explorer 0 Win Type 0 Total 21 Types 14/1/1/1/1/0/1/1/0/1 Lore% 83 Gallery% 70 Achievement% 69 Wizard Run 0 Options --------- Layout 1 ASCII 0 Keyboard 0 Movement Mouse Keybinds 1 Fullscreen 2 Font 32/Tamsyn Map View 50x35 Zoom Use 0% Tactical HUD 1 Map Filters NONE Filters NONE Steam 1 RUN: d374d827-8ff4-4185-9b41-46fb203256a2